Cogmind - Beta 15 @@@ ROGUE MODE // 2025.07.04 @ 15:52:19 Player: 7604 Result: Destroyed by P-80 Master with Gamma Rifle Performance ------------- Evolutions (9) 4500 Regions Visited (27) 5400 Robots Destroyed (395) 1975 Value Destroyed (21094) 21094 Prototype IDs (129) 2580 Alien Tech Used (3) 600 Bonus (15153) 15153 TOTAL SCORE: 51302 Bonus ------- High Alert Combat Kills 5403 Follower Combat Kills 2320 Entered Garrisons 200 Network Hubs Disabled 400 Met Data Miner 300 Met Warlord at Base 500 MAIN.C Attacked Warlord 500 Warlord Defense Kills 496 Built Enhanced Grunts 300 A7 Reached Mainframe 300 Met R17 at Cetus 500 Met R17 at Research 2000 Met Warlord at Research 2000 Scanned by Researcher 500 Friendly Fire -566 Cogmind --------- Core Integrity 0/1600 Matter 75/300 Energy 100/100 System Corruption 14% Temperature Cool (0) Movement Core (50) Location -1/Access Parts ------- > --- POWER (3) -------- (None) > --- PROPULSION (5) --- (None) > --- UTILITY (13) ----- (None) > --- WEAPON (5) ------- (None) > --- INVENTORY (5) ---- Concept Chromion Battery (800) Advanced Weight Redist. System Advanced Transmission Jammer Experimental Thermal Shield AEGIS Remote Shield Peak State ------------ > --- POWER ------------ Micro Antimatter Reactor Graviton-Vortex Reactor > --- PROPULSION ------- Treaded Armored-Antigrav Exoskeleton Compact Wheel > --- UTILITY ---------- Armored Scrap Engine Advanced Cooling System High-capacity Storage Unit 0b10 Decoder Chip [Generic] Concept Weapon Articulator Experimental Transmission Jammer Heavy Regenerative Plating SHELL Armor Concept RG22 Armor > --- WEAPON ----------- Enhanced Hardcell Cannon Fusion Bomb Launcher Hpw. Ballistic Quantum Construct/C Nanosword > --- INVENTORY -------- Light Quantum Reactor 2N-1CE's Frost Array Concept Chromion Battery Advanced Weight Redist. System Advanced Signal Interpreter Advanced Target Analyzer Concept Recoil Nullifier Concept Recoil Nullifier Advanced Transmission Jammer Makeshift ECM Suite Experimental Thermal Shield Experimental EM Shield AEGIS Remote Shield Mini Drone Bay Transdimensional Reconstructor Subatomic Replicator Enhanced Hardcell Cannon Advanced Datajack [Rating: 227] Favorites ----------- Power Constructs Engine Light Ion Engine Power Core Neutrino Core Reactor Constructs Propulsion Constructs Treads Constructs Leg Experimental Myomer Leg Wheel Wheel Hover Unit Antigrav System Flight Unit Electron Diverter Utility Advanced Signal Interpreter Device Armored Scrap Engine Storage High-capacity Storage Unit Processor Advanced Signal Interpreter Hackware Advanced Hacking Suite Protection SHELL Armor Weapon Constructs Energy Gun Improved Heavy Laser Energy Cannon Constructs Ballistic Gun Enhanced Autogun Ballistic Cannon Constructs Launcher Fusion Bomb Launcher Special Weapon Mining Laser Impact Weapon Makeshift Hammer Slashing Weapon Nanosword Piercing Weapon Force Lance Special Melee Weapon Advanced Datajack Build | -11 -10 -10 -8 -8 -8 -6 -6 -6 -6 -5 -5 -5 -5 -5 -4 -4 -4 -4 -4 -4 -3 -3 -2 -2 -2 -2 -1 ------- Run | Yrd Mat Sub Mat Sto Rec Fac Low Low Dat Pro Fac Upp Upp War Pro Fac Ext Cet Arc Hub Res Tes Res Qua Frg Gar Acc Slots Evolved 18 | . . . 4 . . 4 . . . . 2 . . . . 2 . . . . 2 . 2 . . . 2 Power 1 | . . . . . . 1 . . . . . . . . . . . . . . . . . . . . . Propulsion 3 | . . . 2 . . . . . . . . . . . . 1 . . . . . . . . . . . Utility 11 | . . . 2 . . 2 . . . . 2 . . . . . . . . . 2 . 1 . . . 2 Weapon 3 | . . . . . . 1 . . . . . . . . . 1 . . . . . . 1 . . . . Parts Attached 264 | 7 10 6 4 24 1 33 2 . 4 3 16 8 5 12 10 23 9 4 1 8 14 19 7 4 11 1 18 Power 27 | 1 . 1 . 1 . 4 . . 1 1 3 . 3 1 1 4 . . . . . . . . 1 . 5 Engine 12 | 1 . 1 . 1 . 3 . . 1 . 3 . 2 . . . . . . . . . . . . . . Core 5 | . . . . . . 1 . . . 1 . . 1 . . 2 . . . . . . . . . . . Reactor 10 | . . . . . . . . . . . . . . 1 1 2 . . . . . . . . 1 . 5 Propulsion 31 | 2 . . 2 12 . 3 . . 1 . . 2 1 3 1 . 1 . . . . . . . . . 3 Treads 18 | 2 . . 2 11 . 2 . . . . . . . . . . 1 . . . . . . . . . . Leg 4 | . . . . . . . . . 1 . . . . 2 1 . . . . . . . . . . . . Wheel 4 | . . . . . . 1 . . . . . . 1 . . . . . . . . . . . . . 2 Hover 4 | . . . . 1 . . . . . . . 2 . . . . . . . . . . . . . . 1 Flight 1 | . . . . . . . . . . . . . . 1 . . . . . . . . . . . . . Utility 121 | 2 4 2 2 4 1 14 2 . 2 1 11 3 . 2 3 13 5 . . 4 10 14 2 4 9 . 7 Device 72 | 1 . 1 1 1 1 7 1 . . . 6 2 . 1 2 10 2 . . 2 8 9 1 4 6 . 6 Storage 8 | 1 2 . . . . . . . . 1 . . . . . 1 1 . . . . 1 . . 1 . . Processor 14 | . . . . . . 3 . . . . 3 . . . 1 2 . . . . 2 . 1 . 1 . 1 Hackware 4 | . . . . . . . . . . . 2 1 . 1 . . . . . . . . . . . . . Protection 23 | . 2 1 1 3 . 4 1 . 2 . . . . . . . 2 . . 2 . 4 . . 1 . . Artifact . | . . . . . . . . . . . . . . . . . . . . . . . . . . . . Weapon 85 | 2 6 3 . 7 . 12 . . . 1 2 3 1 6 5 6 3 4 1 4 4 5 5 . 1 1 3 Energy Gun 19 | . . . . 4 . 5 . . . . 1 1 . . . 1 . 1 . 1 . 3 1 . . . 1 Energy Cannon 19 | . . 1 . 1 . 2 . . . 1 1 . . 2 3 1 . 2 . 1 1 2 1 . . . . Ballistic Gun 12 | 2 1 1 . 2 . . . . . . . . . . 1 2 . 1 1 . . . . . . 1 . Ballistic Cannon 17 | . 3 1 . . . 1 . . . . . 1 1 2 . . 2 . . . . . 3 . 1 . 2 Launcher 6 | . 1 . . . . 2 . . . . . . . 1 . . . . . 1 1 . . . . . . Special Weapon 1 | . 1 . . . . . . . . . . . . . . . . . . . . . . . . . . Impact Weapon 2 | . . . . . . 1 . . . . . 1 . . . . . . . . . . . . . . . Slashing Weapon 4 | . . . . . . 1 . . . . . . . 1 1 . . . . . 1 . . . . . . Piercing Weapon 4 | . . . . . . . . . . . . . . . . 2 1 . . . 1 . . . . . . Special Melee Weapon 1 | . . . . . . . . . . . . . . . . . . . . 1 . . . . . . . Unidentified Prototypes 71 | . . 1 . 8 1 8 . . 1 2 1 . 1 8 1 2 . 2 . 2 3 13 3 2 6 . 6 Corrupted Parts 9 | . . . . . . 1 . . 1 2 . . . 1 . . . 2 . 1 1 . . . . . . System Corruption 50 | . . . . . . 6 . . 3 19 . . . 2 . . . 9 . 5 6 . . . . . . Parts Lost 81 | . . 1 . 2 1 9 . . 1 1 19 . 2 1 3 3 . . . 1 1 1 . . 7 . 28 Power 14 | . . 1 . . . 3 . . . 1 2 . . . 1 . . . . . . . . . 1 . 5 Propulsion 13 | . . . . . . 4 . . . . 2 . 2 . . . . . . . . . . . 1 . 4 Utility 35 | . . . . 2 1 1 . . 1 . 8 . . 1 . 3 . . . 1 1 . . . 3 . 13 Weapon 19 | . . . . . . 1 . . . . 7 . . . 2 . . . . . . 1 . . 2 . 6 Highest Loss Streak 18 | . . 1 . 1 1 3 . . 1 1 15 . 2 1 3 1 . . . 1 1 1 . . 4 . 18 To Critical Strikes 4 | . . . . . . . . . . . 2 . . . . . . . . . . . . . 1 . 1 Average Backups 16 | 1 12 22 21 22 18 17 14 16 18 18 17 3 4 4 4 10 17 18 18 18 17 18 17 16 15 18 16 Power . | . 1 . . . . . . . . . . . . . . . . 1 2 1 . . . . . . . Propulsion 1 | . . 2 2 4 4 1 . . 1 2 1 . . . . . 2 1 1 1 1 2 1 . . 1 . Utility 7 | . 3 8 7 6 5 8 7 7 8 10 8 1 2 2 2 4 9 10 10 9 8 9 7 6 7 13 11 Weapon 6 | . 8 11 12 11 7 6 7 8 8 6 7 1 1 1 2 4 4 5 5 6 6 6 8 6 5 2 1 Tool/Special . | . . . . . . . . . . . . . . . . . . . . . . . . . . . . Unused Backups 179 | . 2 3 . 4 40 29 1 3 7 2 12 . . 2 . 10 8 8 1 2 12 1 5 8 4 2 13 Power 16 | . . . . . 2 5 1 . . . . . . . . 2 . 2 . 1 1 . . 1 1 . . Propulsion 72 | . . . . 2 25 9 . 2 3 2 3 . . . . 3 6 3 . . 4 1 1 2 2 . 4 Utility 25 | . . 1 . 1 4 7 . . . . 1 . . . . 1 . 2 . . . . 1 2 . . 5 Weapon 64 | . 2 2 . 1 9 8 . 1 4 . 8 . . 1 . 4 2 1 1 1 7 . 3 3 1 2 3 Tool/Special 2 | . . . . . . . . . . . . . . 1 . . . . . . . . . . . . 1 Average Slot Usage (%) 73 | . 100 100 74 99 75 60 74 68 65 63 63 67 74 78 65 62 60 59 59 60 62 56 55 54 54 58 56 Engine 5 | . 14 14 9 9 8 4 4 . 1 . 3 . 3 2 . . . . . . . . . . . . . Core 1 | . . . . . . 2 3 6 6 10 3 . 1 5 1 . . . . . . . 1 . . . . Reactor 2 | . . . . . . . . . . . . . . 3 4 8 6 5 5 5 4 4 2 4 4 8 7 Treads 12 | . 28 28 24 36 19 5 20 19 11 5 2 5 4 . . 2 4 1 5 5 4 4 4 4 2 . 1 Device 16 | . 13 13 11 17 20 15 19 17 13 18 16 16 16 15 10 16 15 15 14 17 18 18 17 16 15 15 15 Storage 6 | . 14 14 9 9 9 6 6 6 6 6 4 . . . . 3 5 5 5 5 4 4 4 4 4 4 2 Processor 5 | . . . . . . 9 6 6 6 6 14 11 11 6 10 10 10 10 10 10 10 5 6 8 7 8 4 Hackware 1 | . . . . . . . . . . . . 10 11 14 16 4 . . . . . . . . . . . Protection 2 | . . . 3 9 . . . 1 5 1 . . . . . . 4 5 5 2 5 3 4 4 4 4 6 Energy Cannon 3 | . . 6 . . . 5 13 9 8 10 8 . . 3 2 1 . 3 6 3 . 1 4 2 5 5 1 Ballistic Gun 3 | . 1 9 . 11 9 . . . . . . . . . . . 2 5 4 . . . . . . . . Ballistic Cannon 4 | . 24 6 18 . 1 1 . . . . 1 4 5 4 6 4 6 5 3 1 5 8 3 5 2 2 4 Special Weapon 1 | . 2 5 . . 5 . . . . . . . . . . . . . . . . . . . . . . Peak Build Rating 227 | 7 11 16 21 38 50 83 82 78 88 88 107 87 88 130 129 125 130 151 152 156 171 185 200 221 219 211 227 Average Rating 86 | 6 9 13 17 30 42 71 77 74 76 83 97 82 83 112 112 109 119 139 150 149 162 170 191 209 210 197 198 On Entrance 101 | . 7 11 16 21 38 47 80 77 73 78 88 54 87 80 113 112 114 130 151 148 156 154 182 202 219 204 204 Naked Turns 15 | . . . . . . . . . . . . . . . . . . . . . . . . . . . 15 Heaviest Build 188 | 12 92 94 96 101 100 82 76 71 80 91 95 17 30 95 95 101 139 146 146 143 156 155 154 159 168 166 188 Greatest Support 155 | 40 40 40 80 80 83 116 94 94 74 69 90 44 44 54 102 123 123 155 155 155 155 155 155 155 98 78 140 Greatest Overweight (x) 11 | . 2 2 2 1 7 2 . . 1 1 1 . 2 6 2 1 2 1 . . 1 . . 1 1 2 11 Average Overweight (x) . | . . 2 1 1 1 . . . . . . . . 1 . . 1 . . . . . . . 1 1 1 Largest Inventory Capacity 25 | 8 25 25 25 25 25 20 20 20 20 20 20 5 5 5 5 15 20 20 20 20 20 20 20 20 20 20 20 Average Capacity 18 | 7 19 25 25 25 23 20 20 20 20 20 19 5 5 5 5 12 19 20 20 20 20 20 20 20 20 20 19 Most Carried 25 | 5 17 25 25 25 25 20 20 20 20 20 20 5 5 5 5 15 20 20 20 20 20 20 20 20 20 20 20 Average Carried 17 | 1 12 23 23 24 19 19 15 17 19 19 18 4 5 4 4 10 18 19 19 19 18 19 19 18 17 19 17 Final Capacity 25 | 8 25 25 25 25 20 20 20 20 20 20 5 5 5 5 5 15 20 20 20 20 20 20 20 20 20 20 5 Final Carried 25 | 5 17 25 21 25 19 18 16 19 20 20 5 5 5 5 5 15 20 20 19 19 19 20 17 18 20 19 5 Scrap Engine Consumption 388 | . . . . . 56 37 5 4 12 5 30 4 5 28 7 37 27 21 8 3 21 2 19 13 10 4 30 Constructs Created 9 | . . . . . 3 1 . . . . . 1 1 . . 2 1 . . . . . . . . . . Constructs Modified 173 | . . . . . 23 18 3 2 4 3 15 . 2 7 5 16 12 9 3 1 10 1 10 7 6 2 14 Class Distribution -------------------- 27% | Construct 27% | Mutant 13% | Commander-Construct 11% | Hacker-Mutant 3% | Scavenger-Mutant 3% | Commander-Mutant Dominant Class ---------------- Mutant | -10/Materials Mutant | -10/Subcaves Mutant | -8/Materials Scavenger-Mutant | -8/Storage Commander-Construct | -8/Recycling Construct | -6/Factory Construct | -6/Lower Caves Construct | -6/Lower Caves Construct | -6/Data Miner Construct | -5/Proximity Caves Construct | -5/Factory Hacker-Mutant | -5/Upper Caves Hacker-Mutant | -5/Upper Caves Hacker-Mutant | -5/Warlord Hacker-Tank | -4/Proximity Caves Assassin | -4/Factory Commander-Construct | -4/Extension Commander-Construct | -4/Cetus Commander-Construct | -4/Archives Construct | -4/Hub_04(d) Construct | -3/Research Construct | -3/Testing Construct | -2/Research Construct | -2/Quarantine Construct | -2/Protoforge Gunner | -2/Garrison Tank | -1/Access Resources | -11 -10 -10 -8 -8 -8 -6 -6 -6 -6 -5 -5 -5 -5 -5 -4 -4 -4 -4 -4 -4 -3 -3 -2 -2 -2 -2 -1 ----------- Run | Yrd Mat Sub Mat Sto Rec Fac Low Low Dat Pro Fac Upp Upp War Pro Fac Ext Cet Arc Hub Res Tes Res Qua Frg Gar Acc Matter Collected 12203 | 380 61 437 . 707 345 970 130 371 144 486 621 203 223 361 693 442 538 82 203 374 1015 734 324 350 902 63 1044 Remotely . | . . . . . . . . . . . . . . . . . . . . . . . . . . . . Salvage Created 16688 | 182 117 258 . 1051 145 1627 . 308 430 499 1483 . 200 58 624 204 646 394 483 539 1181 809 301 981 1822 223 2123 Parts 795 | 20 8 19 . 57 5 96 . 14 12 23 86 . 11 2 17 17 21 19 11 18 58 32 6 60 88 9 86 Haulers Intercepted 8 | . 1 . . 1 . 3 . . . . 1 . . . . 1 . . . . . . 1 . . . . Recyclers Shooed 16 | . . . . . . 5 . . . . 4 . . . . . 4 . . . 1 . . . . . 2 Parts Field Recycled . | . . . . . . . . . . . . . . . . . . . . . . . . . . . . Retrieved Matter . | . . . . . . . . . . . . . . . . . . . . . . . . . . . . Parts Self-Destructed 59 | . . 6 . . . . . 11 . 16 . . 10 . 16 . . . . . . . . . . . . Prevented 5 | . . . . . . . . 2 . . . . 3 . . . . . . . . . . . . . . Kills | -11 -10 -10 -8 -8 -8 -6 -6 -6 -6 -5 -5 -5 -5 -5 -4 -4 -4 -4 -4 -4 -3 -3 -2 -2 -2 -2 -1 ------- Run | Yrd Mat Sub Mat Sto Rec Fac Low Low Dat Pro Fac Upp Upp War Pro Fac Ext Cet Arc Hub Res Tes Res Qua Frg Gar Acc Combat Hostiles Destroyed 298 | . 5 3 . 17 . 32 . 8 4 16 25 . 3 4 13 12 13 5 2 10 15 9 2 15 34 9 42 Melee 11 | . . . . . . . . . . . . . . . 1 3 2 . . 1 2 1 . . . . 1 Guns 22 | . . . . 17 . . . . . . . . . . . . . . 1 1 3 . . . . . . Cannons 163 | . 3 2 . . . 20 . 3 . 6 19 . 3 . 12 8 11 . 1 7 3 4 2 8 21 2 28 AOE 77 | . 2 1 . . . 11 . 4 . 10 6 . . 4 . 1 . . . . 5 2 . 4 7 7 13 Classes Destroyed 27 | 1 6 3 . 4 . 4 . 1 . 1 . . . 1 . . . . . . . 1 . 1 2 . 2 Worker 14 | . 1 . . 1 . 2 . . . . 4 . . . . . . . . . 3 . . 1 . . 2 Builder 20 | . . . . 1 . 1 . . . . 3 . . . . 1 . . . . 1 3 . . 3 . 7 Tunneler 14 | 8 . . . . . . . . . . 2 . . . . . . . . . 1 . . . . . 3 Hauler 8 | . 1 . . 1 . 3 . . . . 1 . . . . 1 . . . . . . 1 . . . . Recycler 10 | . . . . 1 . 1 . . . . 1 . . . . . 1 . . . 4 1 . . . . 1 Mechanic 1 | . . . . . . . . . . . . . . . . . . . . . . . . . . . 1 Operator 18 | . 1 . . . . 1 . . . . 1 . . . . . 1 . 9 . 1 . . 3 . . 1 Drone 1 | . . . . . . . . . . . . . . . . . . . . . . . . . 1 . . Watcher 7 | . 1 . . . . 1 . . . . . . . . . . . . . 1 1 . . 1 2 . . Swarmer 57 | . 4 2 . . . 7 . 1 . 4 4 . 3 . 1 3 1 . . 2 5 . . 4 4 7 5 Saboteur 1 | . . . . . . . . . . . . . . . . . . . . . . . . . . . 1 Grunt 73 | . 1 . . 5 . 6 . 1 . 9 9 . . . 7 . 4 . . 1 3 6 1 . 5 . 15 Brawler 5 | . . . . 2 . . . . . . 1 . . 1 . . . . . . . . . . . . 1 Duelist 9 | . . . . . . . . . . . . . . 1 2 . . . . . . . . . . . 6 Protector 4 | . . . . 1 . 1 . . . . . . . 1 1 . . . . . . . . . . . . Researcher 2 | . . . . . . . . . . . . . . . . . . . . . . 1 . . 1 . . Sentry 33 | . . 1 . 9 . 1 . 1 . . 1 . . . 1 1 5 . 2 2 2 . 1 . 3 1 2 Specialist 3 | . . . . . . 3 . . . . . . . . . . . . . . . . . . . . . Hunter 35 | . . . . . . 1 . . . 2 4 . . 1 . 3 . . . 3 5 2 . 2 7 1 4 Programmer 50 | . . . . . . 13 . . . . 6 . . . . 5 . . . . . . . 8 10 . 8 Heavy 1 | . . . . . . 1 . . . . . . . . . . . . . . . . . . . . . Behemoth 5 | . . . . . . . . . . 1 . . . . 1 . 2 . . 1 . . . . . . . Cetus Guard 5 | . . . . . . . . . . . . . . . . . . 5 . . . . . . . . . Enhanced Grunt 4 | . . . . . . . . . 4 . . . . . . . . . . . . . . . . . . Lightning 1 | . . . . . . . . . . . . . . . . . . . . 1 . . . . . . . Decapitator 3 | . . . . . . . . . . . . . . . . . . . . . . . . . 3 . . Immortal 1 | . . . . . . . . . . . . . . . . . . . . . . . . . 1 . . Fortress 1 | . . . . . . . . . . . . . . . . . . . . . . . . 1 . . . Protovariant G 1 | . . . . . . . . . . . . . . . . . . . . . . 1 . . . . . Artisan 1 | . . 1 . . . . . . . . . . . . . . . . . . . . . . . . . Scientist 1 | . . 1 . . . . . . . . . . . . . . . . . . . . . . . . . Decomposer 2 | . . . . . . . . . . . . . 2 . . . . . . . . . . . . . . Wasp 3 | . . . . . . . . 3 . . . . . . . . . . . . . . . . . . . Thug 1 | . . . . . . . . 1 . . . . . . . . . . . . . . . . . . . Savage 1 | . . . . . . . . . . . . . . . . . . . . 1 . . . . . . . Butcher 1 | . . . . . . . . . . . . . . . . . 1 . . . . . . . . . . Mutant 1 | . . . . . . . . 1 . . . . . . . . . . . . . . . . . . . Best Kill Streak 13 | 2 3 2 . 4 . 11 . 4 4 13 12 . 3 4 7 2 3 3 5 3 11 4 1 5 6 4 10 Combat Bots Only 13 | . 3 2 . 3 . 9 . 4 4 13 5 . 3 4 7 2 3 3 2 3 5 4 1 4 5 4 6 Max Kills in Single Turn 4 | 1 2 2 . 2 . 2 . 2 1 2 4 . 1 3 1 1 1 1 1 1 4 2 1 4 3 3 4 Gunslinging . | . . . . . . . . . . . . . . . . . . . . . . . . . . . . Exploded 3 | . 1 1 . . . 2 . 2 . 2 2 . . 3 . 1 . . . . 1 2 . 2 3 3 3 Melee 1 | . . . . . . . . . . . . . . . 1 1 1 . . 1 1 1 . . . . 1 Uniques/NPCs Destroyed 1 | . . . . . . . . . 1 . . . . . . . . . . . . . . . . . . Data Miner (-6/Data Miner) Combat | -11 -10 -10 -8 -8 -8 -6 -6 -6 -6 -5 -5 -5 -5 -5 -4 -4 -4 -4 -4 -4 -3 -3 -2 -2 -2 -2 -1 -------- Run | Yrd Mat Sub Mat Sto Rec Fac Low Low Dat Pro Fac Upp Upp War Pro Fac Ext Cet Arc Hub Res Tes Res Qua Frg Gar Acc Hostile Shots Fired 3571 | . 18 18 . 95 5 220 1 19 17 125 296 . 42 33 101 184 110 58 7 114 262 190 2 56 611 25 962 Missed 1090 | . 6 5 . 25 1 63 . 8 4 31 77 . 16 11 25 57 34 19 3 38 93 77 2 18 179 10 288 Hits 2481 | . 12 13 . 70 4 157 1 11 13 94 219 . 26 22 76 127 76 39 4 76 169 113 . 38 432 15 674 Melee 128 | . . . . 2 . . . . . . 25 . . 2 1 . . . . . . . . . 83 . 15 Projectile 2353 | . 12 13 . 68 4 157 1 11 13 94 194 . 26 20 75 127 76 39 4 76 169 113 . 38 349 15 659 AOE 10 | . . . . . 4 . . . . . 2 . . . . 2 . . . 1 . . . . . . 1 Critical Strikes 155 | . . . . 4 . 8 . 1 . 1 10 . . 1 6 10 7 4 . 5 3 4 . 2 53 . 36 Actively Blocked 1 | . . . . 1 . . . . . . . . . . . . . . . . . . . . . . . Part Disruptions 5 | . . . . . . . . . . . 1 . . . . 1 . . . . . . . 1 1 . 1 Damage Taken 44451 | . 103 223 . 1030 245 2993 20 202 608 1697 5029 . 387 511 1423 1890 853 526 52 1290 1740 2104 12 1172 8369 234 11738 Core 4665 | . 19 78 . 155 . 431 . 19 139 179 542 . 62 60 111 278 91 59 . 47 109 308 . 23 466 10 1479 Absorbed by Shields 12026 | . . . . . . 15 . . . . 86 . . 156 96 520 902 552 56 753 1512 519 12 63 4511 222 2051 Reduced by Siege Mode 37 | . . . . . . . . . . . 20 . . . . . . . . . . . . . 17 . . Redirected to Shielding 75 | . . . . 75 . . . . . . . . . . . . . . . . . . . . . . . Ignored by Resistances 1299 | . . . . . . 11 . . . . . . . . . . . . . . . 5 . 84 634 . 565 Regen/Repaired (Parts) 19350 | . . . . . 20 537 124 106 89 643 1348 . 44 316 295 1321 745 401 133 19 1547 916 357 1456 3203 1476 4254 Core Remaining (%) 55 | 100 . 61 . . 71 . . . . 9 . . . . 22 . . . . 58 . 67 . . . 58 . Volleys Fired 1136 | 29 16 73 . 76 21 104 4 14 10 31 93 . 21 9 48 28 49 30 37 53 53 33 4 53 112 25 110 Largest 3 | 2 2 2 . 2 2 2 1 2 2 2 2 . 1 1 3 2 2 1 3 2 2 3 3 2 2 2 2 Hottest 299 | 40 100 100 . 122 100 149 85 149 139 134 299 . 59 160 250 230 140 88 200 130 141 235 282 238 146 125 133 Shots Fired 1583 | 58 27 89 . 142 27 120 4 19 20 45 134 . 19 9 60 30 64 29 67 71 83 38 8 73 158 30 159 Gun 339 | 58 . 34 . 135 18 6 . . . . 9 . . . . . 11 1 33 20 13 . 1 . . . . Cannon 1131 | . 24 27 . 1 . 104 4 16 20 33 118 . 19 5 60 30 53 28 34 51 61 37 7 71 154 26 148 Launcher 70 | . 2 1 . . . 10 . 3 . 12 7 . . 4 . . . . . . 9 1 . 2 4 4 11 Special 43 | . 1 27 . 6 9 . . . . . . . . . . . . . . . . . . . . . . Kinetic 766 | 58 24 44 . 85 18 20 . 3 . 12 24 . . 5 44 23 63 . 39 20 45 27 3 16 31 21 141 Thermal 586 | . 1 44 . 57 9 87 4 6 . 33 97 . 19 . . 4 . 1 . 38 22 . 4 55 105 . . Explosive 39 | . 2 1 . . . 4 . . . . 3 . . 4 . . . . . . 3 1 . 2 4 4 11 Electromagnetic 142 | . . . . . . 9 . 10 20 . 10 . . . . . . 28 28 13 13 10 1 . . . . Entropic 50 | . . . . . . . . . . . . . . . 16 3 1 . . . . . . . 18 5 7 Robot Hit Streak 27 | 8 7 14 . 15 23 27 . 4 15 14 25 . 14 6 11 9 17 5 11 8 7 7 8 6 13 2 24 Robot Miss Streak 9 | 3 2 4 . 3 . 3 . 5 2 3 5 . 9 3 2 6 2 2 8 3 2 2 2 2 6 2 5 Penetration Max 2 | . . . . . . . . . . . 1 . . . . . . . 1 2 1 . . . . . . Secondary Targets . | . . . . . . . . . . . . . . . . . . . . . . . . . . . . Shots Hit Robots 962 | 37 19 27 . 93 17 74 . 7 17 27 87 . 16 6 42 34 52 15 39 38 63 29 11 31 68 4 109 Core Hits 598 | 13 9 14 . 37 5 80 . 11 10 36 66 . 15 19 14 17 21 3 17 16 44 14 3 16 36 8 74 Critical Kills 29 | . . . . . . . . . . . . . . . . . 5 . 1 5 6 3 . 3 6 . . Critical Parts Destroyed 29 | . . . . . . . . . . . . . . . . . 5 . 4 8 9 3 . . . . . Critical Strikes 108 | . 1 . . 3 . 2 . . . . . . . 2 6 5 13 1 5 14 18 7 . 3 10 1 17 Burn 4 | . . . . 3 . 1 . . . . . . . . . . . . . . . . . . . . . Meltdown 9 | . . . . . . . . . . . . . . . . . . . . . . . . 3 6 . . Destroy 53 | . . . . . . . . . . . . . . . . . 12 . 5 14 16 6 . . . . . Blast 21 | . 1 . . . . . . . . . . . . 2 3 . . . . . . . . . . . 15 Corrupt 3 | . . . . . . 1 . . . . . . . . . . . 1 . . 1 . . . . . . Sever 3 | . . . . . . . . . . . . . . . . . . . . . . 1 . . 1 . 1 Impale 5 | . . . . . . . . . . . . . . . . 3 1 . . . 1 . . . . . . Sunder 10 | . . . . . . . . . . . . . . . 3 2 . . . . . . . . 3 1 1 Melee Attacks 214 | . . . . . . 12 . . 6 . 6 . 1 2 4 54 16 . . 2 22 31 9 4 11 4 30 Impact 6 | . . . . . . 5 . . . . . . 1 . . . . . . . . . . . . . . Slashing 117 | . . . . . . 7 . . 6 . 6 . . 2 4 8 . . . . 10 31 . . 9 4 30 Piercing 70 | . . . . . . . . . . . . . . . . 46 16 . . . 8 . . . . . . Sneak Attacks 39 | . . . . . . . . . 1 . . . . . . 4 2 . . 2 8 4 9 3 2 . 4 Combat Hostiles . | . . . . . . . . . . . . . . . . . . . . . . . . . . . . Follow-up Attacks 3 | . . . . . . . . . . . . . . . . 1 2 . . . . . . . . . . Damage Inflicted 65283 | 420 577 464 . 1755 302 5006 . 765 632 2603 5774 . 221 1868 2801 2551 3046 579 1506 1841 4504 2132 258 3893 9270 1236 11279 Guns 4189 | 420 . 299 . 1739 278 137 . . . . 123 . . . . . 133 . 470 381 209 . . . . . . Cannons 38749 | . 382 37 . . . 2538 . 327 550 1193 3403 . 221 42 2725 1166 2254 579 1036 1417 1889 837 258 2822 7618 314 7141 Explosions 17429 | . 195 128 . . . 2294 . 416 . 1410 2088 . . 1826 . 595 . . . . 1760 423 . 1071 933 922 3368 Melee 4736 | . . . . . . . . . 82 . 132 . . . 76 790 659 . . . 646 872 . . 709 . 770 Ramming 156 | . . . . 16 . 37 . 22 . . 28 . . . . . . . . 43 . . . . 10 . . Kinetic 25342 | 420 382 336 . 1038 278 1587 . 416 . 1410 1851 . . 42 1962 860 2387 . 650 381 1045 529 138 406 2125 251 6848 Thermal 17603 | . . . . 701 24 2553 . . . 1193 3078 . 221 . . 648 . . . 1038 901 . . 2631 4615 . . Explosive 10761 | . 195 128 . . . 331 . . . . 527 . . 1826 . . . . . . 1419 423 . 856 766 922 3368 Electromagnetic 4268 | . . . . . . 498 . 327 550 . 158 . . . . . . 579 856 379 493 308 120 . . . . Impact . | . . . . . . . . . . . . . . . . . . . . . . . . . . . . Slashing 3243 | . . . . . . . . . 82 . 132 . . . 76 163 . . . . 439 872 . . 709 . 770 Piercing 1493 | . . . . . . . . . . . . . . . . 627 659 . . . 207 . . . . . . Entropic 2417 | . . . . . . . . . . . . . . . 763 253 . . . . . . . . 1045 63 293 Highest Corruption 36 | . . . . . . 19 19 13 16 35 36 36 36 36 2 4 4 13 13 30 10 10 . 2 15 15 14 Average Corruption 11 | . . . . . . 11 12 12 15 16 7 36 36 15 2 1 4 11 13 18 4 10 . 1 7 15 3 Corruption Purged 9 | . . . . . . . 7 . . . . . . . . 2 . . . . . . . . . . . Corruption Blocked . | . . . . . . . . . . . . . . . . . . . . . . . . . . . . Effects 622 | . . . . . . 71 29 31 27 36 27 56 51 4 15 6 51 18 21 37 22 30 . 4 46 18 22 Message Errors 159 | . . . . . . 18 7 9 6 11 6 20 8 . 4 2 16 2 8 6 6 4 . 1 13 5 7 Matter Fused 156 | . . . . . . 21 9 7 8 7 6 14 15 3 3 1 12 3 4 10 6 9 . . 8 5 5 Heat Flow Errors 66 | . . . . . . 5 4 4 2 6 5 7 6 . 4 1 3 3 1 3 3 5 . . . 4 . Energy Discharges 71 | . . . . . . 5 3 3 5 5 4 5 7 . 1 . 8 3 1 5 2 4 . . 8 . 2 Parts Rejected 9 | . . . . . . . . . . . . . 1 . . . 1 1 1 . 1 . . 1 1 . 2 Parts Fused 6 | . . . . . . . 1 1 . . . . 2 . . . . . . . . . . . 1 1 . Data Loss (minor) 60 | . . . . . . 8 1 4 2 3 1 6 5 1 2 1 6 2 3 3 . 4 . 1 3 . 4 Data Loss (major) 40 | . . . . . . 5 3 . 1 . 2 3 4 . 1 1 4 1 2 2 2 1 . 1 3 3 1 Misfires 7 | . . . . . . 3 . 1 1 1 . . . . . . . . . . . . . . 1 . . Alerts 15 | . . . . . . 2 1 1 1 . 1 1 1 . . . 1 1 . 2 1 2 . . . . . Misdirections 10 | . . . . . . . . . . 2 2 . . . . . . . . 3 1 . . . 2 . . Weapon Failures 23 | . . . . . . 4 . 1 1 1 . . 2 . . . . 2 1 3 . 1 . . 6 . 1 Overload Shots 2 | . . . . . . . . . . . . . . . . . . . . . . . . 2 . . . Overflow Damage 6200 | . 27 23 . . 3 225 . 46 . 98 438 . 13 6 280 385 317 37 36 44 246 266 . 668 1525 63 1454 Projectiles 4459 | . 27 . . . 3 71 . 11 . 91 390 . 13 . 280 86 204 37 36 44 143 . . 621 1374 13 1015 Explosions 681 | . . 23 . . . 154 . 35 . 7 48 . . 6 . 78 . . . . 92 23 . 47 . 50 118 Melee 1060 | . . . . . . . . . . . . . . . . 221 113 . . . 11 243 . . 151 . 321 Knockbacks 115 | . 3 . . . . 2 . . . . 5 . . . 22 5 4 . . . 6 6 . . 7 . 55 Impact . | . . . . . . . . . . . . . . . . . . . . . . . . . . . . Kinetic 92 | . 3 . . . . 2 . . . . 5 . . . 16 4 4 . . . 6 4 . . 6 . 42 Secondary 23 | . . . . . . . . . . . . . . . 6 1 . . . . . 2 . . 1 . 13 Self-Inflicted Damage 2052 | . . 5 . . . 169 . 25 . 105 377 . . 113 . 191 . . . . 76 75 . 432 99 137 248 Shots 41 | . . 1 . . . 4 . 1 . 4 7 . . 2 . 3 . . . . 4 1 . 6 1 2 5 Rammed 9 | . . . . 3 . 3 . 1 . . 1 . . . . . . . . . . . . . 1 . . Targets Rammed 13 | . . . . 4 . 3 . 1 . . 3 . . . . . . . . 1 . . . . 1 . . Kicked 1 | . . . . . . . . . . . 1 . . . . . . . . . . . . . . . . Crushed 3 | . . . . 1 . . . . . . 1 . . . . . . . . 1 . . . . . . . Highest Temperature 534 | . 20 . . 360 22 327 261 260 162 255 369 240 251 249 321 460 292 301 356 329 348 534 371 51 224 238 246 Average Temperature 95 | . 7 . . 100 22 66 90 62 79 73 106 112 95 93 97 131 81 96 166 114 97 135 191 36 33 81 72 Received Heat Transfer 3893 | . . 36 . 486 6 367 9 45 . 255 507 . . 21 341 25 189 20 . 60 96 309 4 4 726 4 383 Effects 22 | . . . . . . . . . . 1 4 . . . 1 5 . 1 . 1 4 3 . . . 1 1 Shutdowns 3 | . . . . . . . . . . . . . . . . 2 . . . . . 1 . . . . . Energy Bleed 5 | . . . . . . . . . . 1 1 . . . . . . . . . 1 1 . . . 1 . Interference 11 | . . . . . . . . . . . 2 . . . 1 3 . . . 1 3 . . . . . 1 Damage (minor) 2 | . . . . . . . . . . . 1 . . . . . . 1 . . . . . . . . . Damage (core) 1 | . . . . . . . . . . . . . . . . . . . . . . 1 . . . . . Siege Activations 3 | . . . . . . . . . . . 1 . . . . . . . . . . . . . 2 . . Total Turns 32 | . . . . . . . . . . . 9 . . . . . . . . . . . . . 23 . . Longest Duration 20 | . . . . . . . . . . . 9 . . . . . . . . . . . . . 20 . . Martial Activations . | . . . . . . . . . . . . . . . . . . . . . . . . . . . . Shielding Activations . | . . . . . . . . . . . . . . . . . . . . . . . . . . . . Robots Disrupted . | . . . . . . . . . . . . . . . . . . . . . . . . . . . . Combat Hostiles . | . . . . . . . . . . . . . . . . . . . . . . . . . . . . Robots Corrupted 17 | . . . . . . 1 . 1 4 . . . . . . . . 5 1 1 2 2 . . . . . Combat Hostiles 16 | . . . . . . 1 . 1 4 . . . . . . . . 5 . 1 2 2 . . . . . Parts Fried 46 | . . . . . . 5 . 1 12 . 1 . . . . . . 4 15 . 4 2 1 . . . 1 Impact Corruptions 4 | . . . . . . . . . . . . . . . 1 . . . . . . . . . 1 . 2 Robots Melted 9 | . . . . . . . . . . . . . . . . . . . . . . . . 3 6 . . Combat Hostiles 9 | . . . . . . . . . . . . . . . . . . . . . . . . 3 6 . . Parts Melted 24 | . . . . 5 . 1 . . . 3 1 . . . 1 . . . . . . . . 8 4 . 1 Heat Transferred 9414 | . . . . 1628 50 1671 . . . 999 859 . 1184 . . 474 . . . 611 481 . . 519 938 . . Parts Sabotaged 6 | . . . . . . . . . . . 3 . . . . . . . . . . . . . . . 3 Parts Stolen . | . . . . . . . . . . . . . . . . . . . . . . . . . . . . Parts Stripped . | . . . . . . . . . . . . . . . . . . . . . . . . . . . . Power Chain Reactions 10 | . . . . . . 4 . . . . 2 . . . . . . . . . . . . 3 1 . . Alert | -11 -10 -10 -8 -8 -8 -6 -6 -6 -6 -5 -5 -5 -5 -5 -4 -4 -4 -4 -4 -4 -3 -3 -2 -2 -2 -2 -1 ------- Run | Yrd Mat Sub Mat Sto Rec Fac Low Low Dat Pro Fac Upp Upp War Pro Fac Ext Cet Arc Hub Res Tes Res Qua Frg Gar Acc Maximum Alert Level 5 | . . . . 1 . 2 . . . . 3 . . . . 1 3 2 1 3 3 3 2 2 4 4 5 Low Security (%) 55 | 100 100 . 100 97 100 38 . . . . 59 . . . . 97 67 . 1 38 . . 8 28 . . . Level 1 13 | . . . . 2 . 42 . . . . 13 . . . . 2 11 1 98 1 . . 88 20 2 . . Level 2 14 | . . . . . . 19 . . . . 25 . . . . . 13 98 . 12 52 74 2 50 26 . . Level 3 9 | . . . . . . . . . . . . . . . . . 7 . . 47 47 25 . . 53 41 32 Level 4 3 | . . . . . . . . . . . . . . . . . . . . . . . . . 17 58 19 Level 5 3 | . . . . . . . . . . . . . . . . . . . . . . . . . . . 47 High Security . | . . . . . . . . . . . . . . . . . . . . . . . . . . . . Max Security . | . . . . . . . . . . . . . . . . . . . . . . . . . . . . Peak Influence 1969 | 10 94 . 177 211 80 655 . . . . 728 . . . . 222 778 556 355 984 992 750 402 694 1278 1412 1969 Initial 955 | . . . . 55 80 200 . . . . 21 . . . . . 60 425 188 86 496 555 402 101 372 955 847 Average 330 | . 18 . 42 70 18 263 . . . . 197 . . . . 130 210 490 302 535 687 601 299 365 864 1132 1386 Influence Increases 15552 | 40 265 150 201 792 267 1550 15 120 24 370 1136 . 95 65 269 704 1296 351 337 1364 836 563 81 895 1486 457 1823 Destroy 0b10 Robot/C 6800 | . 100 60 80 380 40 720 . 100 20 320 500 . 60 60 240 240 620 160 80 480 300 200 40 300 680 180 840 Destroy 0b10 Robot/NC 595 | 40 20 . 5 30 20 55 . . . . 60 . 10 5 5 10 40 10 45 25 55 20 5 25 35 . 75 Destroy Leader 1136 | . 14 . 12 124 . 180 . . . 50 102 . 10 . 20 52 36 . . 126 72 20 12 62 94 10 140 Allied During Kill 1373 | . . . 39 7 17 79 . 20 4 . . . . . 4 . 454 170 125 454 . . . . . . . Trap Triggered on 0b10 30 | . . . . . . . . . . . . . . . . . . . . . . . . . 10 20 . Successful Hack 552 | . 29 . . 29 24 48 . . . . 37 . . . . 65 26 9 . 17 50 12 . 96 83 . 27 Select Force Hacks 150 | . 30 . . . 120 . . . . . . . . . . . . . . . . . . . . . . Disable Machine 1200 | . 30 . 30 60 45 75 . . . . 60 . . . . 120 60 . 45 120 30 135 15 165 90 60 60 Destroy Structure 2406 | . 12 . 35 12 1 118 . . . . 242 . . . . 172 60 2 42 82 164 86 9 232 434 187 516 Advance Influence 200 | . . . . . . 200 . . . . . . . . . . . . . . . . . . . . . Partial Spotted 105 | . . . . . . 15 . . . . . . . . . . . . . 45 30 15 . . . . . Lose Combat Pursuer 1005 | . 30 90 . 150 . 60 15 . . . 135 . 15 . . 45 . . . 15 135 75 . 15 60 . 165 Influence Decreases 13760 | 40 237 178 70 716 474 896 593 148 72 336 496 674 95 20 314 581 659 641 560 665 794 835 616 414 874 319 1443 Entered New Map 4124 | . . 14 . 76 127 . 243 15 48 . 13 251 . . 45 . 63 335 282 161 450 433 314 80 290 319 565 Time Decay 8143 | 40 237 164 10 580 328 677 350 133 . 326 299 423 75 10 225 551 493 206 238 334 334 392 302 334 514 . 568 Lost Part 774 | . . . . 20 10 90 . . . 10 184 . 20 10 20 30 . . . 10 10 10 . . 70 . 280 Lost Ally 687 | . . . 60 40 . 129 . . 24 . . . . . 24 . 80 100 40 160 . . . . . . 30 Purge Threat 32 | . . . . . 9 . . . . . . . . . . . 23 . . . . . . . . . . Squads Dispatched 99 | . 1 . 1 4 . 19 . 1 . . 8 . . . 1 5 . . . 13 10 3 . 7 9 . 17 Investigation 11 | . 1 . . . . 2 . . . . 1 . . . . 1 . . . . 4 . . . 1 . 1 Extermination 25 | . . . . . . 6 . . . . 4 . . . . 4 . . . 1 . . . 3 3 . 4 Reinforcement 32 | . . . 1 2 . 9 . . . . 2 . . . . . . . . 4 6 1 . 3 3 . 1 Assault 22 | . . . . 2 . 2 . 1 . . 1 . . . 1 . . . . 2 . 2 . 1 2 . 8 Garrison 9 | . . . . . . . . . . . . . . . . . . . . 6 . . . . . . 3 Intercept . | . . . . . . . . . . . . . . . . . . . . . . . . . . . . Searches Triggered . | . . . . . . . . . . . . . . . . . . . . . . . . . . . . Construction Impeded 4 | . . . . 1 . 2 . . . . . . . . . . . . . 1 . . . . . . . Haulers Reinforced 3 | . . . . . . 1 . . . . . . . . . . . . . . 2 . . . . . . Active Scanning Responses . | . . . . . . . . . . . . . . . . . . . . . . . . . . . . Cargo Convoy Interrupts 1 | . . . . . . 1 . . . . . . . . . . . . . . . . . . . . . Stealth | -11 -10 -10 -8 -8 -8 -6 -6 -6 -6 -5 -5 -5 -5 -5 -4 -4 -4 -4 -4 -4 -3 -3 -2 -2 -2 -2 -1 --------- Run | Yrd Mat Sub Mat Sto Rec Fac Low Low Dat Pro Fac Upp Upp War Pro Fac Ext Cet Arc Hub Res Tes Res Qua Frg Gar Acc Distress Signals 30 | . . . 2 2 . . . . . . 3 . . 2 . 2 1 3 . 1 7 2 2 1 . . 2 Communications Jammed 138 | . . . . . . . . . . . 5 . . . . 1 . . . 11 1 33 . 9 68 . 10 Distress Signals 125 | . . . . . . . . . . . 5 . . . . 1 . . . 10 1 22 . 9 68 . 9 Times Spotted 648 | . 8 19 7 38 3 50 1 10 4 16 51 . 4 27 15 35 33 10 14 28 37 45 5 29 71 9 79 Peak Tracking Total 16 | . 3 3 6 10 1 11 1 4 4 9 8 . 4 11 7 6 6 5 2 5 9 12 3 5 16 4 9 Tactical Retreats 62 | . 1 4 . 9 . 3 1 . . . 5 . 1 . 1 5 . . . 1 6 7 . 3 5 . 10 Traps | -11 -10 -10 -8 -8 -8 -6 -6 -6 -6 -5 -5 -5 -5 -5 -4 -4 -4 -4 -4 -4 -3 -3 -2 -2 -2 -2 -1 ------- Run | Yrd Mat Sub Mat Sto Rec Fac Low Low Dat Pro Fac Upp Upp War Pro Fac Ext Cet Arc Hub Res Tes Res Qua Frg Gar Acc Traps Triggered 23 | . . . . . . 2 . . . . 4 . . . . . 2 . . 1 5 1 . 1 6 1 . Indirectly . | . . . . . . . . . . . . . . . . . . . . . . . . . . . . Trap Hack Attempts 24 | . . . . . . . . . . . . . . . . . . . . . . . . . 24 . . Triggered . | . . . . . . . . . . . . . . . . . . . . . . . . . . . . Disarmed . | . . . . . . . . . . . . . . . . . . . . . . . . . . . . Reprogrammed 1 | . . . . . . . . . . . . . . . . . . . . . . . . . 1 . . Reused 3 | . . . . . . . . . . . . . . . . . . . . . . . . . 1 2 . Traps Extracted . | . . . . . . . . . . . . . . . . . . . . . . . . . . . . Installed 4 | . . . . . . . . . . . . . . . . . . . . . . . . . . 4 . Triggered 3 | . . . . . . . . . . . . . . . . . . . . . . . . . 1 2 . Machines | -11 -10 -10 -8 -8 -8 -6 -6 -6 -6 -5 -5 -5 -5 -5 -4 -4 -4 -4 -4 -4 -3 -3 -2 -2 -2 -2 -1 ---------- Run | Yrd Mat Sub Mat Sto Rec Fac Low Low Dat Pro Fac Upp Upp War Pro Fac Ext Cet Arc Hub Res Tes Res Qua Frg Gar Acc Machines Disabled 94 | . 2 2 2 4 3 5 . 1 1 . 4 . . . . 8 7 1 3 8 2 12 1 11 9 4 4 Max in Single Turn 6 | . 1 1 . 1 1 1 . 1 1 . 2 . . . . 6 1 1 2 1 1 1 1 4 1 1 3 Garrison Access 6 | . . . . . . . . . . . 1 . . . . 2 . . . 1 1 . . . . . 1 Network Hub 2 | . . . . . . . . . . . . . . . . . . . . 2 . . . . . . . Machines Repaired . | . . . . . . . . . . . . . . . . . . . . . . . . . . . . Machines Dismantled . | . . . . . . . . . . . . . . . . . . . . . . . . . . . . Machines Sabotaged . | . . . . . . . . . . . . . . . . . . . . . . . . . . . . Overloaded Fab Kills . | . . . . . . . . . . . . . . . . . . . . . . . . . . . . Hacking | -11 -10 -10 -8 -8 -8 -6 -6 -6 -6 -5 -5 -5 -5 -5 -4 -4 -4 -4 -4 -4 -3 -3 -2 -2 -2 -2 -1 --------- Run | Yrd Mat Sub Mat Sto Rec Fac Low Low Dat Pro Fac Upp Upp War Pro Fac Ext Cet Arc Hub Res Tes Res Qua Frg Gar Acc Machines Accessed 123 | . 7 2 . 8 13 10 . . 4 . 15 . . 6 . 9 11 2 . 7 6 4 1 9 6 . 3 Terminals 73 | . 6 . . 7 4 7 . . . . 6 . . . . 5 11 2 . 7 2 3 1 7 5 . . Fabricators 4 | . . . . . . . . . . . 2 . . . . 1 . . . . 1 . . . . . . Repair Stations 5 | . . . . . . 3 . . . . 2 . . . . . . . . . . . . . . . . Recycling Units 16 | . 1 . . 1 8 . . . . . 3 . . . . 1 . . . . 1 . . . . . 1 Scanalyzers 3 | . . . . . . . . . . . . . . . . . . . . . 1 . . 2 . . . Garrison Access 9 | . . . . . . . . . . . 2 . . . . 2 . . . . 1 1 . . 1 . 2 Total Hacks 350 | . 23 4 . 22 35 24 . . 31 . 33 . . 16 . 28 22 3 . 14 18 13 1 30 25 . 8 Successful 191 | . 11 4 . 14 24 8 . . 31 . 13 . . 16 . 24 10 2 . 7 6 2 . 10 7 . 2 Failed 159 | . 12 . . 8 11 16 . . . . 20 . . . . 4 12 1 . 7 12 11 1 20 18 . 6 Catastrophic 35 | . 2 . . . 1 4 . . . . 5 . . . . . 1 1 . 3 4 4 1 3 4 . 2 Database Lockouts . | . . . . . . . . . . . . . . . . . . . . . . . . . . . . Manual 140 | . 15 . . 15 25 14 . . . . 11 . . 1 . 8 5 1 . 10 2 3 1 15 12 . 2 Terminals 210 | . 21 . . 21 8 16 . . . . 13 . . . . 20 22 3 . 14 12 10 1 27 22 . . Fabricators 12 | . . . . . . . . . . . 6 . . . . 5 . . . . 1 . . . . . . Repair Stations 13 | . . . . . . 8 . . . . 5 . . . . . . . . . . . . . . . . Recycling Units 37 | . 2 . . 1 23 . . . . . 6 . . . . 1 . . . . 1 . . . . . 3 Scanalyzers 6 | . . . . . . . . . . . . . . . . . . . . . 3 . . 3 . . . Garrison Access 17 | . . . . . . . . . . . 3 . . . . 2 . . . . 1 3 . . 3 . 5 Terminal Hacks 109 | . 3 4 . 7 5 3 . . 31 . 5 . . 16 . 13 7 2 . 3 1 1 . 5 3 . . Record 31 | . . 3 . . 2 . . . 11 . . . . 11 . . 1 1 . . . . . 2 . . . Part Schematic 13 | . . . . . . . . . 12 . . . . . . 1 . . . . . . . . . . . Robot Schematic 5 | . . . . . . . . . 5 . . . . . . . . . . . . . . . . . . Robot Analysis 3 | . . . . 2 . . . . . . 1 . . . . . . . . . . . . . . . . Prototype ID Bank 11 | . 1 . . 1 . . . . 3 . 1 . . 4 . 1 . . . . . . . . . . . Open Door 9 | . . . . 1 . . . . . . . . . 1 . . 5 1 . . . 1 . . . . . Branch Access Points 2 | . . . . . . . . . . . . . . . . 1 . . . . 1 . . . . . . Terminal Index 4 | . . . . 1 . 1 . . . . . . . . . 1 . . . 1 . . . . . . . Alert Level 3 | . . . . . . . . . . . 1 . . . . 1 . . . . . . . . 1 . . Unreport Threat 2 | . . . . . 1 . . . . . . . . . . . 1 . . . . . . . . . . Locate Traps 8 | . 2 . . 1 . . . . . . 1 . . . . 3 . . . . . . . . 1 . . Transport Status 1 | . . . . . . . . . . . . . . . . 1 . . . . . . . . . . . Registered Components 1 | . . . . . . . . . . . 1 . . . . . . . . . . . . . . . . Zone Layout 13 | . . . . 1 . 2 . . . . . . . . . 4 . . . 2 . . . 3 1 . . Proto ID Catalog 1 | . . 1 . . . . . . . . . . . . . . . . . . . . . . . . . Release Object 2 | . . . . . 2 . . . . . . . . . . . . . . . . . . . . . . Fabricator Hacks 6 | . . . . . . . . . . . 2 . . . . 3 . . . . 1 . . . . . . Network Status 3 | . . . . . . . . . . . 1 . . . . 1 . . . . 1 . . . . . . Load Schematic 1 | . . . . . . . . . . . . . . . . 1 . . . . . . . . . . . Build 2 | . . . . . . . . . . . 1 . . . . 1 . . . . . . . . . . . Repair Station Hacks 5 | . . . . . . 3 . . . . 2 . . . . . . . . . . . . . . . . Scan Component 3 | . . . . . . 2 . . . . 1 . . . . . . . . . . . . . . . . Repair 2 | . . . . . . 1 . . . . 1 . . . . . . . . . . . . . . . . Recycling Unit Hacks 8 | . . . . . 6 . . . . . 1 . . . . 1 . . . . . . . . . . . Retrieve Components 8 | . . . . . 6 . . . . . 1 . . . . 1 . . . . . . . . . . . Scanalyzer 2 | . . . . . . . . . . . . . . . . . . . . . 2 . . . . . . Insert Component 2 | . . . . . . . . . . . . . . . . . . . . . 2 . . . . . . Garrison Access Hacks 6 | . . . . . . . . . . . 1 . . . . 2 . . . . 1 . . . 1 . 1 Unlock Access 1 | . . . . . . . . . . . . . . . . . . . . . . . . . 1 . . Seal Access 5 | . . . . . . . . . . . 1 . . . . 2 . . . . 1 . . . . . 1 Unauthorized Hacks 55 | . 8 . . 7 13 2 . . . . 2 . . . . 5 3 . . 4 1 1 . 5 3 . 1 Terminals 43 | . 7 . . 7 4 2 . . . . 2 . . . . 5 3 . . 4 1 1 . 4 3 . . Track 13 | . . . . 1 . . . . . . 1 . . . . 1 2 . . 3 . 1 . 3 1 . . Botnet 14 | . 1 . . 1 1 2 . . . . 1 . . . . 2 1 . . 1 1 . . 1 2 . . Disrupt 1 | . . . . . . . . . . . . . . . . 1 . . . . . . . . . . . Operators 2 | . 1 . . . . . . . . . . . . . . 1 . . . . . . . . . . . Skim 13 | . 5 . . 5 3 . . . . . . . . . . . . . . . . . . . . . . Fabricators . | . . . . . . . . . . . . . . . . . . . . . . . . . . . . Repair Stations . | . . . . . . . . . . . . . . . . . . . . . . . . . . . . Recycling Units 10 | . 1 . . . 9 . . . . . . . . . . . . . . . . . . . . . . Reject 1 | . . . . . 1 . . . . . . . . . . . . . . . . . . . . . . Mask 4 | . . . . . 4 . . . . . . . . . . . . . . . . . . . . . . Tunnel 5 | . 1 . . . 4 . . . . . . . . . . . . . . . . . . . . . . Scanalyzers 1 | . . . . . . . . . . . . . . . . . . . . . . . . 1 . . . Researchers 1 | . . . . . . . . . . . . . . . . . . . . . . . . 1 . . . Garrison Access 1 | . . . . . . . . . . . . . . . . . . . . . . . . . . . 1 Redirect 1 | . . . . . . . . . . . . . . . . . . . . . . . . . . . 1 Data Cores Recovered 4 | . . . . . . 1 . . . . 1 . . . . . 1 . . . . . . 1 . . . Used 2 | . . . . . . . . . . . 1 . . . . . 1 . . . . . . . . . . Hacking Detections 91 | . 7 . . 7 7 10 . . . . 15 . . . . 7 7 1 . 7 3 3 1 7 6 . 3 Full Trace Events 6 | . . . . . . 2 . . . . 1 . . . . 1 . . . . 1 . . . 1 . . Feedback Events 1 | . . . . . . . . . . . . . . . . . . . . . 1 . . . . . . Corruption 1 | . . . . . . . . . . . . . . . . . . . . . 1 . . . . . . Feedback Blocked . | . . . . . . . . . . . . . . . . . . . . . . . . . . . . Robot Schematics Acquired 10 | . . . . . . . . . 5 . . . . . . . . . . . . 1 . 2 2 . . Robots Built . | . . . . . . . . . . . . . . . . . . . . . . . . . . . . Authchips . | . . . . . . . . . . . . . . . . . . . . . . . . . . . . Time . | . . . . . . . . . . . . . . . . . . . . . . . . . . . . Total Robot Build Rating . | . . . . . . . . . . . . . . . . . . . . . . . . . . . . Part Schematics Acquired 19 | . . . . . . . . . 12 . . . . . . 1 . . . . . 4 . 2 . . . Parts Built 4 | . . . . . . . . . . . 2 . . . . 2 . . . . . . . . . . . Authchips . | . . . . . . . . . . . . . . . . . . . . . . . . . . . . Time 197 | . . . . . . . . . . . 69 . . . . 128 . . . . . . . . . . . Total Part Build Rating 34 | . . . . . . . . . . . 18 . . . . 16 . . . . . . . . . . . Parts Repaired 2 | . . . . . . 1 . . . . 1 . . . . . . . . . . . . . . . . Time 44 | . . . . . . 19 . . . . 25 . . . . . . . . . . . . . . . . Parts Recycled . | . . . . . . . . . . . . . . . . . . . . . . . . . . . . Recycled Matter . | . . . . . . . . . . . . . . . . . . . . . . . . . . . . Retrieved Matter . | . . . . . . . . . . . . . . . . . . . . . . . . . . . . Retrieved Components 10 | . . . . . 8 . . . . . 2 . . . . . . . . . . . . . . . . Parts Scanalyzed . | . . . . . . . . . . . . . . . . . . . . . . . . . . . . Part Schematics Acquired . | . . . . . . . . . . . . . . . . . . . . . . . . . . . . Parts Damaged . | . . . . . . . . . . . . . . . . . . . . . . . . . . . . Bothacking | -11 -10 -10 -8 -8 -8 -6 -6 -6 -6 -5 -5 -5 -5 -5 -4 -4 -4 -4 -4 -4 -3 -3 -2 -2 -2 -2 -1 ------------ Run | Yrd Mat Sub Mat Sto Rec Fac Low Low Dat Pro Fac Upp Upp War Pro Fac Ext Cet Arc Hub Res Tes Res Qua Frg Gar Acc Used RIF Installer . | . . . . . . . . . . . . . . . . . . . . . . . . . . . . Robots Hacked 19 | . . . . . . . . . . . . . . . . . . . . 2 4 . 8 3 2 . . Non-combat 6 | . . . . . . . . . . . . . . . . . . . . . 2 . 2 1 1 . . Combat 13 | . . . . . . . . . . . . . . . . . . . . 2 2 . 6 2 1 . . Robot Hacks Applied 20 | . . . . . . . . . . . . . . . . . . . . 2 4 . 8 4 2 . . parse_system 17 | . . . . . . . . . . . . . . . . . . . . 2 3 . 8 3 1 . . no_distress 1 | . . . . . . . . . . . . . . . . . . . . . . . . . 1 . . find_station 1 | . . . . . . . . . . . . . . . . . . . . . . . . 1 . . . check_alert 1 | . . . . . . . . . . . . . . . . . . . . . 1 . . . . . . Relay Couplers Released 5 | . . . . . . 3 . . . . . . . . . . . . . 2 . . . . . . . Machine Destruction 2 | . . . . . . . . . . . . . . . . . . . . 2 . . . . . . . Programmers 3 | . . . . . . 3 . . . . . . . . . . . . . . . . . . . . . Fabnet Peak Effective % . | . . . . . . . . . . . . . . . . . . . . . . . . . . . . Robots Rewired 24 | . . . . . 9 . . 4 . . . . . . 2 . 9 . . . . . . . . . . Allies Hacked . | . . . . . . . . . . . . . . . . . . . . . . . . . . . . Hacks Repelled . | . . . . . . . . . . . . . . . . . . . . . . . . . . . . Allies | -11 -10 -10 -8 -8 -8 -6 -6 -6 -6 -5 -5 -5 -5 -5 -4 -4 -4 -4 -4 -4 -3 -3 -2 -2 -2 -2 -1 -------- Run | Yrd Mat Sub Mat Sto Rec Fac Low Low Dat Pro Fac Upp Upp War Pro Fac Ext Cet Arc Hub Res Tes Res Qua Frg Gar Acc Total Allies 58 | . . 13 . 2 13 . . 4 . . . . . . 2 . 19 5 . . . . . . . . . Largest Group 14 | . . 9 8 2 13 13 . 4 4 . . . . . 2 . 14 14 14 11 . . . . . . . Highest-Rated Group 876 | . . 171 152 62 262 262 . 89 89 . . . . . 95 . 651 876 876 659 . . . . . . . Highest-Rated Ally 159 | . . 19 19 31 34 34 . 29 29 . . . . . 48 . 159 146 146 96 . . . . . . . Total Orders 11 | . . . . . 3 . . . 1 . . . . . . . . . . 2 . . . . . . 5 STAY 4 | . . . . . 1 . . . 1 . . . . . . . . . . 2 . . . . . . . FOLLOW 2 | . . . . . 2 . . . . . . . . . . . . . . . . . . . . . . EXPLORE 4 | . . . . . . . . . . . . . . . . . . . . . . . . . . . 4 RETURN 1 | . . . . . . . . . . . . . . . . . . . . . . . . . . . 1 Ally Attacks 464 | . . 28 34 39 15 67 . 2 6 . . . . . 8 . 113 52 15 85 . . . . . . . Total Damage 12481 | . . 441 885 553 264 1220 . 70 150 . . . . . 195 . 3992 1151 557 3003 . . . . . . . Kills 79 | . . 3 6 4 5 8 . 2 . . . . . . . . 25 5 2 19 . . . . . . . Allies Corrupted . | . . . . . . . . . . . . . . . . . . . . . . . . . . . . Allies Melted 5 | . . . . . . . . . . . . . . 1 . . 1 . . . . . 3 . . . . Intel | -11 -10 -10 -8 -8 -8 -6 -6 -6 -6 -5 -5 -5 -5 -5 -4 -4 -4 -4 -4 -4 -3 -3 -2 -2 -2 -2 -1 ------- Run | Yrd Mat Sub Mat Sto Rec Fac Low Low Dat Pro Fac Upp Upp War Pro Fac Ext Cet Arc Hub Res Tes Res Qua Frg Gar Acc Active Infowar (turns) 31138 | 243 1503 733 23 2119 1763 3235 777 511 . 587 1923 1125 1107 1572 1106 1915 2574 432 518 757 753 933 675 757 1403 404 1690 Sensors 14348 | . . . . . . 2466 775 511 . 587 1582 1125 1107 1572 . 1327 48 . 3 563 553 218 450 625 836 . . Terrain 9944 | . . . 22 2119 1081 1599 687 506 . 582 1570 . . . . 1185 47 . . . 338 208 . . . . . Structural 1 | . . . . . . . . . . . . . . . . 1 . . . . . . . . . . . Seismic 7828 | 243 1503 733 23 2000 1735 727 . . . . 13 . . . . . . . . . . 626 225 . . . . Decoding 13865 | . . . . . . . . . . . . . . . 1106 1915 2574 432 518 757 753 933 675 757 1403 404 1638 T.N.C. 1377 | . . . . . . . . . . . 1377 . . . . . . . . . . . . . . . . Cloaking 2 | . . . . . . . . . . . . . . . . . . . . . . . . 2 . . . Jamming 6386 | . . . . . . 34 . . . . 215 . . . . 391 . . 2 709 70 725 675 492 1275 404 1394 ECM 1299 | . . . . . . . . . . . 2 . . . 111 597 . . . . 13 253 . 135 170 . 18 Robot Analysis Total 3 | . . . . 2 . . . . . . 1 . . . . . . . . . . . . . . . . Derelict Logs Recovered 11 | . . 2 . . . . . 2 . 1 . 2 2 . 2 . . . . . . . . . . . . Drone Launches 6 | . . . . . . . . . . . . . . . . . . . . . . . . . . . 6 Drone Recoveries 3 | . . . . . . . . . . . . . . . . . . . . . . . . . . . 3 Decoded 0b10 Intel 302 | . . . . . . . . . . . . . . . . 53 46 6 2 17 24 29 14 19 40 10 42 Traps 43 | . . . . . . . . . . . . . . . . 8 13 . . 1 6 . . 3 2 5 5 Emergency Access 27 | . . . . . . . . . . . . . . . . 5 5 . . 1 1 6 1 2 3 . 3 Items 166 | . . . . . . . . . . . . . . . . 32 16 . . 11 13 22 9 9 25 3 26 Machines 35 | . . . . . . . . . . . . . . . . 3 8 4 . 1 4 1 3 3 3 . 5 Patrols 11 | . . . . . . . . . . . . . . . . 2 3 . . 1 . . 1 1 1 2 . Guards 14 | . . . . . . . . . . . . . . . . 3 . . . 2 . . . . 6 . 3 Exits 6 | . . . . . . . . . . . . . . . . . 1 2 2 . . . . 1 . . . Exploration | -11 -10 -10 -8 -8 -8 -6 -6 -6 -6 -5 -5 -5 -5 -5 -4 -4 -4 -4 -4 -4 -3 -3 -2 -2 -2 -2 -1 ------------- Run | Yrd Mat Sub Mat Sto Rec Fac Low Low Dat Pro Fac Upp Upp War Pro Fac Ext Cet Arc Hub Res Tes Res Qua Frg Gar Acc Turns Passed 41339 | 348 1573 6815 75 2119 3979 3503 780 723 667 739 2039 1125 1107 1633 1276 1927 2574 432 518 757 753 933 675 757 1403 404 1705 Spaces Moved 21986 | 153 555 2040 23 604 1969 1888 476 397 304 444 1130 700 737 1002 831 1304 1133 334 364 807 726 854 673 932 777 250 579 Core 342 | 6 . . . . . . . . . . 249 63 . . . . . . . . . . . . . . 24 Treads 16387 | 147 555 2040 23 604 1632 1713 476 397 279 437 386 637 388 . 15 479 1014 128 364 807 726 854 673 932 559 . 122 Legs 2280 | . . . . . . . . . 25 7 495 . . 637 816 266 . . . . . . . . . . 34 Wheels 989 | . . . . . 337 . . . . . . . 265 365 . . . . . . . . . . . . 22 Hover 1931 | . . . . . . 175 . . . . . . 84 . . 502 119 206 . . . . . . 218 250 377 Flight 57 | . . . . . . . . . . . . . . . . 57 . . . . . . . . . . . Fastest Speed 36 | 50 160 320 245 240 73 126 152 143 126 126 50 50 95 110 122 74 94 36 51 51 51 51 51 51 103 123 50 Average Speed 148 | 155 232 320 293 244 163 148 152 151 142 137 130 148 138 156 132 116 185 67 51 51 53 51 51 58 108 126 207 Slowest Speed 345 | 160 320 320 320 250 250 190 152 152 190 141 173 158 158 250 228 202 294 94 51 51 103 51 51 103 123 175 345 Overloaded Moves . | . . . . . . . . . . . . . . . . . . . . . . . . . . . . Propulsion Burnouts . | . . . . . . . . . . . . . . . . . . . . . . . . . . . . Robots Hopped . | . . . . . . . . . . . . . . . . . . . . . . . . . . . . Potential Cave-ins 31 | . . . . . . . . . . . . . . . . . . . . . . . . . 12 6 13 Cave-ins Triggered . | . . . . . . . . . . . . . . . . . . . . . . . . . . . . Teleports 2 | . . . . . . . . . . . . . . . . . . . . . . . . . 1 . 1 Exploration Rate (%) 59 | 6 84 93 6 75 99 40 61 54 79 60 38 80 87 90 93 25 96 68 88 58 29 73 14 81 24 31 22 Regions Visited 27 Branch Regions 18 Pre-discovered Areas 10 | . 3 2 . . 4 . . . 1 . . . . . . . . . . . . . . . . . . Known Exits Taken 25 | . 1 1 1 1 1 1 1 1 1 1 1 1 1 1 1 1 1 1 1 1 1 1 1 1 1 . . Unknown Exits Taken 1 | 1 . . . . . . . . . . . . . . . . . . . . . . . . . . . Scrap Searched 20 | . . 7 . . . . 1 1 . 3 . 4 2 . 2 . . . . . . . . . . . . Spaces Dug 526 | . 1 7 . 5 1 67 4 5 . 60 24 . 1 2 5 29 2 . . 15 26 41 . 22 104 13 92 Terrain Destroyed 1481 | . 11 9 . 6 1 132 4 41 . 156 132 . 1 27 17 100 20 1 21 28 94 45 2 105 173 129 226 Melee 62 | . . . . . . 10 . . . . . . 1 2 2 23 1 . . . 5 9 . . . 2 7 Projectile 433 | . 2 2 . 6 1 29 4 6 . 9 48 . . . 15 23 19 1 21 28 27 18 2 35 80 17 40 AOE 986 | . 9 7 . . . 93 . 35 . 147 84 . . 25 . 54 . . . . 62 18 . 70 93 110 179 Terrain Rammed . | . . . . . . . . . . . . . . . . . . . . . . . . . . . . Walls Destroyed . | . . . . . . . . . . . . . . . . . . . . . . . . . . . . Machines Disabled . | . . . . . . . . . . . . . . . . . . . . . . . . . . . . Actions | -11 -10 -10 -8 -8 -8 -6 -6 -6 -6 -5 -5 -5 -5 -5 -4 -4 -4 -4 -4 -4 -3 -3 -2 -2 -2 -2 -1 --------- Run | Yrd Mat Sub Mat Sto Rec Fac Low Low Dat Pro Fac Upp Upp War Pro Fac Ext Cet Arc Hub Res Tes Res Qua Frg Gar Acc Total 28704 | 207 810 2186 31 1124 2734 2456 532 496 515 520 1526 787 802 1058 940 1588 1525 514 632 1076 984 1261 1009 1072 1127 306 886 Wait 3714 | 14 210 37 4 362 537 276 34 52 160 26 187 73 32 12 35 99 190 115 222 188 97 265 281 38 94 13 61 Move 21960 | 152 554 2039 22 603 1968 1887 475 396 303 443 1129 699 736 1001 830 1303 1132 333 363 807 725 853 672 931 776 249 579 Hop . | . . . . . . . . . . . . . . . . . . . . . . . . . . . . Pick Up 366 | 5 14 15 . 13 59 53 2 7 13 2 21 4 . 4 1 24 19 13 1 5 21 8 10 12 16 2 22 Fast Attach 165 | 7 . . . 11 . 12 . . 3 1 11 4 8 13 6 20 4 3 2 2 8 19 6 5 8 1 11 Attach 107 | . . 1 4 2 3 15 5 1 . . 15 4 . 1 3 7 1 1 . 1 5 2 3 1 8 2 22 Detach 87 | . . . . 3 10 5 5 2 1 . 6 . . 2 2 12 1 1 . . 4 2 3 2 8 2 16 Swap 300 | . 12 12 1 23 6 34 3 9 4 15 31 . . . 4 13 7 3 4 12 25 21 2 11 33 1 14 Drop 433 | . 4 8 . 27 72 55 4 4 15 2 24 3 4 14 2 30 22 15 3 6 24 27 19 15 10 3 21 Fire 1136 | 29 16 73 . 76 21 104 4 14 10 31 93 . 21 9 48 28 49 30 37 53 53 33 4 53 112 25 110 Melee 209 | . . . . . . 12 . . 6 . 6 . 1 2 4 52 13 . . 2 22 31 9 4 11 4 30 Ram 1 | . . . . . . . . . . . . . . . . . . . . . . . . . 1 . . Kick 1 | . . . . . . . . . . . 1 . . . . . . . . . . . . . . . . Crush 10 | . . . . 4 . 3 . 1 . . 2 . . . . . . . . . . . . . . . . Escape Stasis 30 | . . . . . . . . . . . . . . . . . 4 . . . . . . . 26 . . Rewire 157 | . . 1 . . 58 . . 10 . . . . . . 5 . 83 . . . . . . . . . . Trap 28 | . . . . . . . . . . . . . . . . . . . . . . . . . 24 4 . Miscellaneous . | . . . . . . . . . . . . . . . . . . . . . . . . . . . . Route ------- -11/Scrapyard -10/Materials (discovered 5 exits: *Mat x3 / [*Min] / *Sub) -10/Subcaves (discovered 3 exits: *Mat x2 / Rec) -8/Materials (discovered 2 exits: *Sto x2) -8/Storage (discovered 2 exits: [*Fac] / *Rec) -8/Recycling -6/Factory -6/Lower Caves -6/Lower Caves -6/Data Miner -5/Proximity Caves -5/Factory (discovered 4 exits: *Fac x2 / *Upp x2) -5/Upper Caves -5/Upper Caves (discovered 2 exits: *Fac / *War) -5/Warlord -4/Proximity Caves -4/Factory (discovered 5 exits: Upp x2 / *Ext x2 / Arm) -4/Extension (discovered 3 exits: *Res x2 / *Cet) -4/Cetus (discovered 2 exits: *Res / *Arc) -4/Archives (discovered 3 exits: *Res / *Hub x2) -4/Hub_04(d) (discovered 4 exits: *Res x4) -3/Research (discovered 3 exits: *Res / *Tes x2) -3/Testing -2/Research -2/Quarantine (discovered 3 exits: *Acc / *Sec / *Frg) -2/Protoforge (discovered 2 exits: *Acc / Gar) -2/Garrison -1/Access History --------- Turn | Location | Event 8 | -11/Scrapyard | Discovered new exit (range 15) 349 | -11/Scrapyard | Entered Materials 350 | -10/Materials | Build established: Mutant 718 | -10/Materials | Discovered new exit (range 14) 1357 | -10/Materials | Discovered new exit (range 5) 1507 | -10/Materials | Learned location of Mines (-9) 1542 | -10/Materials | Identified exit to Materials 1542 | -10/Materials | Identified exit to Subcaves 1585 | -10/Materials | Learned location of Recycling (-8) 1610 | -10/Materials | Learned location of 1 exit from Recycling 1639 | -10/Materials | Learned 4 Recycling zone layouts 1922 | -10/Materials | Entered Subcaves 1923 | -10/Subcaves | Approached by a straggling Scientist 1923 | -10/Subcaves | Identified exit to Materials 1923 | -10/Subcaves | Identified exit to Recycling 2476 | -10/Subcaves | Learned Materials garrison access intel 2661 | -10/Subcaves | Visited triangular shrine 2680 | -10/Subcaves | Found Prototype Device 2681 | -10/Subcaves | Identified V3-11A's Pendant 2686 | -10/Subcaves | Befriended Subdweller 3161 | -10/Subcaves | Visited 4L-MR0's lab 3188 | -10/Subcaves | Found Powered Cannon 3375 | -10/Subcaves | Visited Clippyterm 3385 | -10/Subcaves | Learned location of Deep Caves (-7) 3467 | -10/Subcaves | Disturbed a concealed Subdweller 3471 | -10/Subcaves | Befriended Subdweller 3696 | -10/Subcaves | Befriended Subdweller 4316 | -10/Subcaves | Befriended Subdweller 4316 | -10/Subcaves | Befriended Subdweller 4361 | -10/Subcaves | Befriended Subdweller 4529 | -10/Subcaves | A swath of the cavern ceiling suddenly collapsed 4979 | -10/Subcaves | Learned location of Zion (-7) 4979 | -10/Subcaves | Met a Zionite searching for "candidates" 5761 | -10/Subcaves | Befriended Subdweller 5766 | -10/Subcaves | Befriended Subdweller 6026 | -10/Subcaves | Befriended Subdweller 6040 | -10/Subcaves | Shifting Twisted Machinery released Sub. Monowheel 6271 | -10/Subcaves | Befriended Subdweller 6271 | -10/Subcaves | Befriended Subdweller 6311 | -10/Subcaves | Lost 3 allies 7033 | -10/Subcaves | A swath of the cavern ceiling suddenly collapsed 7506 | -10/Subcaves | Shifting Twisted Machinery released Enh. Flamer 7515 | -10/Subcaves | Shifting Twisted Machinery released Mak. Light Armor Plating 7864 | -10/Subcaves | Disturbed a concealed Subdweller 7866 | -10/Subcaves | Befriended Subdweller 8455 | -10/Subcaves | Shifting Twisted Machinery released Scrap Shield 8561 | -10/Subcaves | Disturbed a concealed Subdweller 8561 | -10/Subcaves | Befriended Subdweller 8737 | -10/Subcaves | Entered Materials 8737 | -8/Materials | Accompanied by 8 allies 8737 | -8/Materials | Evolved 4 slots: Propulsion x2, Utility x2 8737 | -8/Materials | Discovered new exit (range 8) 8738 | -8/Materials | Identified exit to Storage 8739 | -8/Materials | Loaded intel: 1 garrison access location 8812 | -8/Materials | Entered Storage 8812 | -8/Storage | Accompanied by 2 allies 8836 | -8/Storage | Lost 4 allies 9671 | -8/Storage | Build established: Scavenger-Mutant 10004 | -8/Storage | Discovered new exit (range 9) 10625 | -8/Storage | Met a pair of Derelict thieves 10924 | -8/Storage | Used back door to open Recycling access 10924 | -8/Storage | Discovered exit to Recycling (range 4) 10931 | -8/Storage | Entered Recycling 10932 | -8/Recycling | Identified exit to Factory 11056 | -8/Recycling | Build established: Mutant 11073 | -8/Recycling | Befriended Subdweller 11118 | -8/Recycling | Befriended Subdweller 11188 | -8/Recycling | Befriended Subdweller 11835 | -8/Recycling | Build established: Commander-Mutant 12001 | -8/Recycling | Entered Scraplab 12011 | -8/Recycling | Found Prototype Device 12013 | -8/Recycling | Identified Scrap Engine 12703 | -8/Recycling | Befriended Subdweller 13180 | -8/Recycling | Build established: Commander-Construct 14910 | -8/Recycling | Entered Factory 14910 | -6/Factory | Accompanied by 13 allies 14910 | -6/Factory | Evolved 4 slots: Power x1, Utility x2, Weapon x1 15156 | -6/Factory | Lost 3 allies 15397 | -6/Factory | Repaired Reactive Plating 15802 | -6/Factory | Found Prototype Processor 15807 | -6/Factory | Identified Exp. Targeting Computer 16070 | -6/Factory | Build established: Construct 16228 | -6/Factory | Cargo convoy interrupted 16278 | -6/Factory | System corruption reached 10% 16315 | -6/Factory | Destroyed 9 combat bots 16321 | -6/Factory | Lost 3 parts (1p2n) 16383 | -6/Factory | Lost 3 parts (1p1u1w) 18104 | -6/Factory | Discovered new exit (range 15) 18357 | -6/Factory | Core integrity fell below 50% 18406 | -6/Factory | Identified exit to Lower Caves 18410 | -6/Factory | First assault squad dispatched 18413 | -6/Factory | Entered Lower Caves 19124 | -6/Lower Caves | Discovered new exit (range 5) 19130 | -6/Lower Caves | Identified exit to Lower Caves 19193 | -6/Lower Caves | Entered another Lower Caves area 19195 | -6/Lower Caves | Ambushed by wild Derelicts 19203 | -6/Lower Caves | Learned Factory terminal intel 19221 | -6/Lower Caves | Learned location of 2 exits from Factory 19596 | -6/Lower Caves | Attacked by a delusional Derelict stockpiling Unaware 19760 | -6/Lower Caves | Discovered new exit (range 4) 19766 | -6/Lower Caves | Attracted the attention of an 0b10 outpost 19776 | -6/Lower Caves | Identified exit to Data Miner 19916 | -6/Lower Caves | Entered Data Miner 19916 | -6/Data Miner | Accompanied by 4 allies 19916 | -6/Data Miner | Discovered new exit (range 6) 19944 | -6/Data Miner | Met Data Miner 19996 | -6/Data Miner | Learned location of Section 7 (-2) 19996 | -6/Data Miner | Acquired the access code to Warlord's prototype stash 20016 | -6/Data Miner | Received God Mode back door access code from Data Miner 20039 | -6/Data Miner | Destroyed Data Miner 20042 | -6/Data Miner | Data Conduit disabled 20044 | -6/Data Miner | Found Prototype Hackware 20079 | -6/Data Miner | Lost 3 allies 20582 | -6/Data Miner | Identified exit to Proximity Caves 20583 | -6/Data Miner | Entered Proximity Caves 20645 | -5/Proximity Caves | Destroyed 13 combat bots 20819 | -5/Proximity Caves | Spotted B-75 Beast 20854 | -5/Proximity Caves | Core integrity fell below 20% 20862 | -5/Proximity Caves | Destroyed B-75 Beast 20973 | -5/Proximity Caves | Learned Factory emergency access door positions 21211 | -5/Proximity Caves | Discovered new exit (range 12) 21280 | -5/Proximity Caves | Identified exit to Factory 21293 | -5/Proximity Caves | System corruption reached 30% 21322 | -5/Proximity Caves | Entered Factory 21322 | -5/Factory | Evolved 2 slots: Utility x2 21323 | -5/Factory | Identified exit to Upper Caves 21325 | -5/Factory | Loaded intel: 26 terminal locations 21387 | -5/Factory | Discovered new exit (range 15) 21968 | -5/Factory | Fabricated Enh. Quantum Rifle (x2) 23053 | -5/Factory | Repaired Lyr. Medium Armor Plating? 23122 | -5/Factory | First assault squad dispatched 23202 | -5/Factory | System corruption reached 10% 23227 | -5/Factory | Identified Deep Network Scanner 23229 | -5/Factory | System corruption reached 30% 23265 | -5/Factory | Lost 15 parts (1p2n6u6w) 23328 | -5/Factory | Core integrity fell below 50% 23331 | -5/Factory | Discovered new exit (range 5) 23332 | -5/Factory | Identified exit to Factory 23361 | -5/Factory | Entered Upper Caves 23395 | -5/Upper Caves | Build established: Mutant 23654 | -5/Upper Caves | Identified exit to Upper Caves 23751 | -5/Upper Caves | Build established: Hacker-Mutant 24203 | -5/Upper Caves | Encountered a Warlord checkpoint 24486 | -5/Upper Caves | Entered another Upper Caves area 24533 | -5/Upper Caves | Discovered exit to Factory (range 14) 24849 | -5/Upper Caves | Encountered a Warlord checkpoint 25492 | -5/Upper Caves | Discovered new exit (range 2) 25493 | -5/Upper Caves | Identified exit to Warlord 25533 | -5/Upper Caves | Found Alien Artifact 25533 | -5/Upper Caves | Identified Core Expander 25533 | -5/Upper Caves | Installed Core Expander, added new Power slot 25593 | -5/Upper Caves | Entered Warlord 25641 | -5/Warlord | System corruption cleaned by Quarantine Array 26005 | -5/Warlord | Opened Warlord's prototype stash 26012 | -5/Warlord | Found Prototype Reactor 26012 | -5/Warlord | Identified Vortex Chain Reactor 26052 | -5/Warlord | Found Prototype Hackware 26052 | -5/Warlord | Identified System Mapper 26160 | -5/Warlord | Learned Armory terminal intel 26160 | -5/Warlord | Learned Armory fabricator intel 26160 | -5/Warlord | Learned Research recycling unit intel 26160 | -5/Warlord | Learned Research garrison access intel 26162 | -5/Warlord | Learned 4 Research zone layouts 26162 | -5/Warlord | Learned 4 Research zone layouts 26162 | -5/Warlord | Learned 4 Access zone layouts 26162 | -5/Warlord | Learned 4 Testing zone layouts 26164 | -5/Warlord | Learned Testing trap positions 26164 | -5/Warlord | Learned Testing stockpile data 26304 | -5/Warlord | Warlord's base attacked by MAIN.C 26399 | -5/Warlord | Found Prototype Energy Cannon 26401 | -5/Warlord | Found Prototype Energy Cannon 26405 | -5/Warlord | Found Prototype Energy Cannon 26431 | -5/Warlord | Identified Vortex Cannon 26457 | -5/Warlord | Found Vortex Cannon 26654 | -5/Warlord | Warlord forces counterattacked 26702 | -5/Warlord | Met Warlord 26960 | -5/Warlord | Spotted B-75 Beast 26979 | -5/Warlord | Warlord base infiltrated, sounded retreat 27047 | -5/Warlord | Spotted Executioner 27067 | -5/Warlord | Spotted Striker 27124 | -5/Warlord | Spotted Striker 27151 | -5/Warlord | Found Corrupted Prototype Launcher 27151 | -5/Warlord | Identified Chain Missile Launcher 27160 | -5/Warlord | Lost 21 allies 27189 | -5/Warlord | Found Prototype Ballistic Cannon 27189 | -5/Warlord | Identified Hvy. Autocannon 27207 | -5/Warlord | Discovered new exit (range 12) 27224 | -5/Warlord | Identified exit to Proximity Caves 27226 | -5/Warlord | Entered Proximity Caves 27228 | -4/Proximity Caves | Identified Vortex Driver (x2) 27436 | -4/Proximity Caves | Build established: Hacker-Tank 27518 | -4/Proximity Caves | Attracted the attention of an 0b10 outpost 27604 | -4/Proximity Caves | Destroyed 7 combat bots 27687 | -4/Proximity Caves | Learned location of 1 exit from Research 27992 | -4/Proximity Caves | Lost 3 parts (1p2w) 28163 | -4/Proximity Caves | Spotted B-86 Titan 28247 | -4/Proximity Caves | Build established: Hacker-Mutant 28344 | -4/Proximity Caves | Destroyed B-86 Titan 28374 | -4/Proximity Caves | Discovered exit to Factory (range 12) 28502 | -4/Proximity Caves | Entered Factory 28502 | -4/Factory | Evolved 2 slots: Propulsion x1, Weapon x1 28503 | -4/Factory | Identified exit to Upper Caves 28503 | -4/Factory | Identified exit to Armory 28872 | -4/Factory | Identified exit to Extension 29073 | -4/Factory | Found Hvy. Reflective Plating 29569 | -4/Factory | Fabricated Linear Accelerator? 30080 | -4/Factory | Build established: Assassin 30161 | -4/Factory | Found Quantum Capacitor 30429 | -4/Factory | Entered Extension 30763 | -4/Extension | Build established: Mutant 30861 | -4/Extension | Rescued A7 31254 | -4/Extension | Rescued a captive Derelict 31255 | -4/Extension | Rescued a captive Derelict 31285 | -4/Extension | Build established: Construct 31721 | -4/Extension | Rescued a captive Derelict 31763 | -4/Extension | Rescued a captive Derelict 31763 | -4/Extension | Rescued a captive Derelict 31922 | -4/Extension | Build established: Commander-Construct 32084 | -4/Extension | Spotted B-86 Titan 32086 | -4/Extension | Destroyed B-86 Titan 32106 | -4/Extension | Spotted B-86 Titan 32110 | -4/Extension | Identified exit to Research 32126 | -4/Extension | Destroyed B-86 Titan 32155 | -4/Extension | Lost 4 allies 32625 | -4/Extension | Rescued a captive Derelict 32690 | -4/Extension | Rescued a captive Derelict 32691 | -4/Extension | Rescued a captive Derelict 32717 | -4/Extension | Rescued a captive Derelict 32862 | -4/Extension | Discovered new exit (range 15) 32863 | -4/Extension | Discovered exit to Research (range 15) 32882 | -4/Extension | Identified exit to Cetus 33003 | -4/Extension | Entered Cetus 33003 | -4/Cetus | Accompanied by 14 allies (A7) 33008 | -4/Cetus | Acquired a Cetus Manufacturing Module code from A7 33018 | -4/Cetus | Spotted Cetus Guard 33018 | -4/Cetus | Spotted Cetus Guard 33022 | -4/Cetus | Spotted Cetus Guard 33024 | -4/Cetus | Spotted Cetus Guard 33028 | -4/Cetus | Destroyed Cetus Guard 33034 | -4/Cetus | Destroyed Cetus Guard 33043 | -4/Cetus | Destroyed Cetus Guard 33045 | -4/Cetus | Allies destroyed Cetus Guard 33058 | -4/Cetus | System corruption reached 10% 33063 | -4/Cetus | Lost 3 allies 33155 | -4/Cetus | Started Cetus Manufacturing Module 33169 | -4/Cetus | Escorted A7 to Cetus Mainframe 33180 | -4/Cetus | Manufactured an Enhanced Grunt 33181 | -4/Cetus | Identified exit to Archives 33205 | -4/Cetus | Manufactured an Enhanced Grunt 33205 | -4/Cetus | Spotted Cetus Guard 33205 | -4/Cetus | Spotted Cetus Guard 33207 | -4/Cetus | Spotted Cetus Guard 33207 | -4/Cetus | Spotted Cetus Guard 33212 | -4/Cetus | Destroyed Cetus Guard 33225 | -4/Cetus | Allies destroyed Cetus Guard 33227 | -4/Cetus | Destroyed Cetus Guard 33230 | -4/Cetus | Manufactured an Enhanced Grunt 33240 | -4/Cetus | Allies destroyed Cetus Guard 33252 | -4/Cetus | Met Revision 17 33255 | -4/Cetus | Manufactured an Enhanced Grunt 33280 | -4/Cetus | Manufactured an Enhanced Grunt 33394 | -4/Cetus | Found a strange terminal 33435 | -4/Cetus | Entered Archives 33435 | -4/Archives | Accompanied by 14 allies (A7) 33440 | -4/Archives | Received a hacking code to weaken MAIN.C 33449 | -4/Archives | Identified exit to Hub_04(d) 33478 | -4/Archives | Discovered exit to Research (range 16) 33953 | -4/Archives | Entered Hub_04(d) 33953 | -4/Hub_04(d) | Accompanied by 11 allies 33954 | -4/Hub_04(d) | Discovered exit to Research (range 10) 34080 | -4/Hub_04(d) | Discovered exit to Research (range 11) 34209 | -4/Hub_04(d) | Garrison activated, responded to threat 34268 | -4/Hub_04(d) | Discovered exit to Research (range 19) 34314 | -4/Hub_04(d) | Garrison activated, responded to threat 34349 | -4/Hub_04(d) | Discovered exit to Research (range 15) 34376 | -4/Hub_04(d) | Lost 3 allies 34547 | -4/Hub_04(d) | Spotted B-86 Titan 34566 | -4/Hub_04(d) | Build established: Construct 34571 | -4/Hub_04(d) | Found Prototype Launcher 34617 | -4/Hub_04(d) | Network Hub disabled 34623 | -4/Hub_04(d) | Destroyed B-86 Titan 34660 | -4/Hub_04(d) | Spotted Lightning 34665 | -4/Hub_04(d) | Spotted Lightning 34667 | -4/Hub_04(d) | Spotted Lightning 34670 | -4/Hub_04(d) | Identified Com. Tesla Bomb Launcher 34670 | -4/Hub_04(d) | Network Hub disabled 34706 | -4/Hub_04(d) | System corruption reached 30% 34710 | -4/Hub_04(d) | Destroyed Lightning 34710 | -4/Hub_04(d) | Entered Research 34710 | -3/Research | Evolved 2 slots: Utility x2 34711 | -3/Research | Identified exit to Research 34713 | -3/Research | Loaded intel: 5 recycling unit locations 34714 | -3/Research | Loaded intel: 4 garrison access locations 34910 | -3/Research | Revision forces began assault on 0b10 34986 | -3/Research | Found Fusion Bomb Launcher 35008 | -3/Research | Met up with Revision 17++ 35265 | -3/Research | System corruption reached 10% 35310 | -3/Research | Identified exit to Testing 35352 | -3/Research | Found Prototype Processor 35353 | -3/Research | Identified Spectral Analyzer 35410 | -3/Research | Research terminal network offline 35463 | -3/Research | Entered Testing 35465 | -3/Testing | Loaded intel: 12 trap records 35531 | -3/Testing | Found Prototype Device 35531 | -3/Testing | Identified 2N-1CE's Frost Array 35674 | -3/Testing | Found Prototype Protection 35674 | -3/Testing | Identified Med. Regenerative Plating 35677 | -3/Testing | Found Prototype Protection 35677 | -3/Testing | Identified Hvy. Regenerative Plating 35680 | -3/Testing | Found Prototype Protection 35680 | -3/Testing | Identified SHELL Armor 35713 | -3/Testing | First assault squad dispatched 35765 | -3/Testing | Discovered exit to Research (range 7) 35777 | -3/Testing | Found Prototype Energy Gun 35777 | -3/Testing | Identified Hyp. EM Gauss Rifle 36126 | -3/Testing | Found Prototype Device 36126 | -3/Testing | Identified AEGIS Remote Shield 36177 | -3/Testing | Found Prototype Energy Cannon 36177 | -3/Testing | Identified Cld. Nova Cannon 36193 | -3/Testing | Spotted PG-TIW70X319Y 36206 | -3/Testing | Destroyed PG-TIW70X319Y 36221 | -3/Testing | Found Prototype Ballistic Cannon 36339 | -3/Testing | Found Prototype Device 36339 | -3/Testing | Identified Exp. Thermal Shield 36396 | -3/Testing | Entered Research 36396 | -2/Research | Warlord forces began assault on 0b10 36396 | -2/Research | Evolved 2 slots: Utility x1, Weapon x1 36399 | -2/Research | Identified Omega Cannon 36422 | -2/Research | Discovered new exit (range 13) 36471 | -2/Research | Met up with Warlord 36506 | -2/Research | Research machine network offline 36630 | -2/Research | Lost 3 allies 36737 | -2/Research | Identified exit to Quarantine 36928 | -2/Research | Borebot progress halted 37071 | -2/Research | Entered Quarantine 37154 | -2/Quarantine | Spotted Alpha 7 37176 | -2/Quarantine | Found Alien Launcher 37210 | -2/Quarantine | Found Alien Artifact 37212 | -2/Quarantine | Lost 3 allies 37212 | -2/Quarantine | Found Alien Artifact 37316 | -2/Quarantine | Found Alien Artifact 37371 | -2/Quarantine | Identified exit to Access 37488 | -2/Quarantine | Found Prototype Device 37488 | -2/Quarantine | Identified Exp. EM Shield 37715 | -2/Quarantine | Spotted Fortress 37723 | -2/Quarantine | Destroyed Fortress 37817 | -2/Quarantine | Discovered new exit (range 6) 37817 | -2/Quarantine | Discovered new exit (range 6) 37821 | -2/Quarantine | First assault squad dispatched 37821 | -2/Quarantine | Identified exit to Protoforge 37824 | -2/Quarantine | Identified exit to Section 7 37828 | -2/Quarantine | Entered Protoforge 37867 | -2/Protoforge | Superfortress began startup sequence 38026 | -2/Protoforge | Discovered exit to Access (range 15) 38578 | -2/Protoforge | First assault squad dispatched 38684 | -2/Protoforge | Found Prototype Storage 38684 | -2/Protoforge | Identified Cep. Chromion Battery 38718 | -2/Protoforge | Found Prototype Device 38718 | -2/Protoforge | Identified Cep. Weapon Articulator 38803 | -2/Protoforge | Identified exit to Garrison 38808 | -2/Protoforge | Spotted Immortal 38837 | -2/Protoforge | Spotted Immortal 38837 | -2/Protoforge | Spotted Immortal 38843 | -2/Protoforge | System corruption reached 10% 38852 | -2/Protoforge | Spotted Immortal 38854 | -2/Protoforge | Spotted Immortal 38856 | -2/Protoforge | Spotted Immortal 38857 | -2/Protoforge | Identified Transdimensional Reconstructor (x2) 38857 | -2/Protoforge | Warped through subspace 38857 | -2/Protoforge | Spotted Immortal 38857 | -2/Protoforge | Spotted Decapitator 38857 | -2/Protoforge | Spotted Decapitator 38857 | -2/Protoforge | Spotted Decapitator 38857 | -2/Protoforge | Spotted Decapitator 38866 | -2/Protoforge | Destroyed Decapitator 38866 | -2/Protoforge | Destroyed Decapitator 38866 | -2/Protoforge | Destroyed Decapitator 38887 | -2/Protoforge | Lost 4 parts (1p2u1w) 38931 | -2/Protoforge | Spotted V530-x 38969 | -2/Protoforge | Found Prototype Device 38969 | -2/Protoforge | Identified Exp. Active Sensor Suite 39028 | -2/Protoforge | Found Prototype Protection 39028 | -2/Protoforge | Identified Cep. RG22 Armor 39133 | -2/Protoforge | Destroyed Immortal 39155 | -2/Protoforge | Scanned by Researcher 39163 | -2/Protoforge | Spotted V246-j 39163 | -2/Protoforge | Spotted V049-c 39166 | -2/Protoforge | Spotted V941-t 39175 | -2/Protoforge | Found Prototype Device 39178 | -2/Protoforge | Found Prototype Device 39180 | -2/Protoforge | Found Prototype Device 39183 | -2/Protoforge | Found Prototype Device 39185 | -2/Protoforge | Found Prototype Device 39231 | -2/Protoforge | Entered Garrison 39277 | -2/Garrison | Triggered checkpoint 39493 | -2/Garrison | Triggered checkpoint 39501 | -2/Garrison | Build established: Gunner 39619 | -2/Garrison | Discovered exit to Access (range 10) 39635 | -2/Garrison | Entered Access 39635 | -1/Access | Evolved 2 slots: Utility x2 39635 | -1/Access | Identified Cep. Recoil Nullifier (x2) 39636 | -1/Access | Identified Exp. Force Booster 39638 | -1/Access | Identified Exp. Kinecellerator 39639 | -1/Access | Identified Cep. Networked Targeting System 39996 | -1/Access | Found Prototype Device 39996 | -1/Access | Identified Exp. Transmission Jammer 40135 | -1/Access | First assault squad dispatched 40277 | -1/Access | Build established: Tank 40788 | -1/Access | Warped through subspace 40794 | -1/Access | Lost 3 parts (2u1w) 41091 | -1/Access | Garrison activated, responded to threat 41190 | -1/Access | Spotted B-99 Colossus 41190 | -1/Access | Spotted B-99 Colossus 41205 | -1/Access | Identified Subatomic Replicator 41205 | -1/Access | Used Subatomic Replicator to replicate AEGIS Remote Shield 41315 | -1/Access | Core integrity fell below 50% 41318 | -1/Access | System corruption reached 10% 41330 | -1/Access | Core integrity fell below 20% 41340 | -1/Access | Destroyed by P-80 Master with Gamma Rifle Last Messages --------------- 41324_ 1QSBZKK%FNBJODHLEIN8H 41324_ Penetrated by Slug. 41324_ Slug penetrates Sealed Heavy Doors. 41325_ Nanosword destroyed. 41325_ Critical hit (Blast). 41325_ Treaded Armored-Antigrav Exoskeleton destroyed. 41325_ Penetrated by Slug. 41325_ Slug penetrates Sealed Heavy Doors. 41325_ Penetrated by Slug. 41325_ 0b10 Decoder Chip [Generic] destroyed. 41325_ Slug penetrates Sealed Heavy Doors. 41339_ P-80 Master resets P-80 Master, system corruption cleaned. Map ----- +----------------------------------------------------+ | ?????????????????????????????????????????????????? | | ?????????????????????????????????????????????????? | | ?????????????????????????????????????????????????? | | ?????????????????????????????????????????????????? | | ?????????????????????????????????????????????????? | | ?????????????????????????????????????????????????? | | ?????????????????????????????????????????????????? | | ?????????????????????????????????????????????????? | | ?????????????????????????????????????????????????? | | ?????????????????????????????????????????????????? | | ?????????????????????????????????????????????????? | | ???###???????????????????????????????????????????? | | ???#%#???????????????????????????????????????????? | | ???#!#???????????????????????????????????????????? | | ???#!##??????????????????????????????????????????? | | ???##!##?????????????????????????????????????????? | | ??##!!]#?????????????????????????????????????????? | | ###!]="####??????????????????????????????????????? | | # !!] * #??????????????????????????????????????? | | # * #??????????????????????????????????????? | | # "" % #??????????????????????????????????????? | | "% " ###????????????????????????????????????? | | #% =" ##???????????????????????????????????? | | # %% !%" ###########?????????????????????????? | | # % %% /" ## % b""""??????????????????????? | | #%% * " # %gb@"??????????????????????? | | ###%"*"%"";;;;;; p %p""""??????????????????????? | | %% =* %m BB % "?????????????????????????? | | % B "?????????????????????????? | | % ^^ "?????????????????????????? | | " ^ "?????????????????????????? | | #####+########## "?????????????????????????? | | #=%= % #????# "?????????????????????????? | | " %% #????# "?????????????????????????? | | # % % ! #????#########?????????????????????????? | | # ##?????????????????????????????????????? | | " "#?????????????????????????????????????? | | " ##?????????????????????????????????????? | | " #??????????????????????????????????????? | | " #????????!?????????????????????????????? | | ######### #??????????????????????????????????????? | | ????????###??????????????????????????????????????? | | ?????????????????????????????????????????????????? | | ?????????????????????????????????????????????????? | | ?????????????????????????????????????????????????? | | ?????????????????????????????????????????????????? | | ?????????????????????????????????????????????????? | | ?????????????????????????????????????????????????? | | ?????????????????????????????????????????????????? | | ?????????????????????????????????????????????????? | +----------------------------------------------------+ Best States ------------- Heat Dissipation 152 Coolant Potential 80 Energy Generation 99 Energy Capacity 2177 Matter Stores 300 Matter Capacity 300 Sight Range 16 Robot Scan Range 16 Terrain Scan Range 20 Terrain Scan Density 210 ECM Strength 2 Jamming Range 22 Armor Coverage 1800 Resistance: KI 20 Resistance: TH 30 Resistance: EM 75 Core Shielding 20 Propulsion Shielding 66 Weapon Cycling 20 Melee Speed Boost 20 Phase Shifting 15 Evasion (%) 57 Targeting Accuracy 30 Target Analysis 8 Recoil Reduction 5 Energy Filtering 50 Offensive Hacking 45 Item Schematics ----------------- Combat Drone Bay | -6/Data Miner | Free Lgt. Regenerative Plating | -6/Data Miner | Free Cld. Gravmag System | -6/Data Miner | Free Exp. Heat Sink | -6/Data Miner | Free Enh. Coil Gun | -6/Data Miner | Free Adv. Medium Treads | -6/Data Miner | Free Imp. Force Field | -6/Data Miner | Free Dispersion Rifle | -6/Data Miner | Free Adv. Plasma Cannon | -6/Data Miner | Free Imp. Remote Force Field | -6/Data Miner | Free Cmb. Antigrav System | -6/Data Miner | Free Biometal Leg | -6/Data Miner | Free Imp. Heavy Siege Treads | -4/Factory | Hacked Adv. EM Disruption Field | -3/Testing | Archive Imp. KE Penetrator | -3/Testing | Archive Lgt. Neutrino Core | -3/Testing | Archive Cld. Nuclear Pulse Thruster | -3/Testing | Archive Lgt. Antimatter Cannon | -2/Quarantine | Archive Com. Mass Driver | -2/Quarantine | Archive Robot Schematics ------------------ G-50 Soldier | -6/Data Miner | Free M-22 Extractor | -6/Data Miner | Free A-15 Conveyor | -6/Data Miner | Free E-15 Imp | -6/Data Miner | Free L-61 Swordsman | -6/Data Miner | Free R-06 Scavenger | -3/Testing | Archive S-43 Plague | -2/Quarantine | Archive Y-72 Warden | -2/Quarantine | Archive A-27 Freighter | -2/Protoforge | Archive T-07 Excavator | -2/Protoforge | Archive Fabricated ------------ Enh. Quantum Rifle | x2 | -5/Factory | Preloaded Linear Accelerator | x2 | -4/Factory | Preloaded Repaired ---------- Reactive Plating | 33% | -6/Factory Lyr. Medium Armor Plating | 11% | -5/Factory Alien Tech Used ----------------- Core Expander Transdimensional Reconstructor Subatomic Replicator Achievements -------------- None Challenges ------------ None Game ------ Seed SurveybotNeutronTurbovents Manual? 0 Play Time 07:12:18 Cumulative 512.0 hours Start 2025.07.03 @ 13:56:11 End 2025.07.04 @ 15:52:19 Sessions 7 Manual Loads 0 Difficulty Rogue Special Mode None Game No. 270 Rogue 207 Adventurer 63 Explorer 0 Win Type - Total 9 Types 8/0/0/1/0/0/0/0/0/0 Lore% 90 Gallery% 82 Achievement% 67 Wizard Run 0 Options --------- Layout 2 ASCII 0 Keyboard 1 Movement Numpad Keybinds 0 Fullscreen 2 Font 24/Terminus Map View 50x44 Zoom Use 0% Tactical HUD 1 Map Filters NONE Filters NONE Steam 1 RUN: ea8ddfc6-1a6f-4478-841b-adb3573b615e